{"text_format":"1","workbook":"xlsx","n_sheets":4,"sheets":["Légende","Récap global","T-shirts (2)","Régimes"],"not_rendered":{"charts":0,"images":0,"macros":1,"external_links":0,"defined_names":5,"comments":1,"pivot_tables":0},"unopened":[],"bounds":{"document_bytes":16777216,"sheet_cells":100000,"rows_first":2000,"rows_last":500,"rows_between":2000,"halvings":0,"cell_chars":16384,"cell_head_chars":4096},"cells_cut":0,"cells_raw":0,"read":"whole","date_system":"1900"}

{"sheet":"Légende","index":0,"n_rows":42,"n_cols":6,"rows_kept":42,"cut":false,"hidden":false,"merged":[[2,5,2,6]]}
[]
[null,"FORFAITS CHAMBRES",null,"INFOS PERSONNELLES",null,"BENEVOLES"]
[null,"Res. Single",null,"1er ANJOU"]
[null,"Res. Double (grand lit)",null,"Enfant malade"]
[null,"Res. Double (double +1 ou twin)",null,"Enfant autre"]
[null,"Pension complète",null,"Parent enfant malade",null,"LISTE D'ATTENTE"]
[null,null,null,"Adulte dépendant "]
[null,null,null,"Parent adulte semi autonome"]
[null,"GENERALITES ENFANTS",null,"Parent adulte dépendant "]
[null,"CLASSE",null,"Adulte malade autonome "]
[null,"Normale ",null,"Parent adulte autonome"]
[null,"Avec AVS",null,"Fratrie "]
[null,"Avec matérie adapté",null,"Conjoint('e)"]
[null,"CLISS",null,"Proche/famille endeuillée"]
[null,"IME",null,"Accompagnant"]
[null,"Domicile",null,"PASA"]
[null,"Autre",null,"Adulte semi-autonome"]
[null,null,null,"Parrains/Marraines"]
[null,null,null,"Intervenant/invité"]
[null,"GENERALITES ENFANTS",null,"Bénévole"]
[null,"TROUBLE DE LA MOTRICITE"]
[null,"Marche avec soutien : sur qq mètres"]
[null,"Utilisation fauteuil / poussette"]
[null,"Monte les escaliers"]
[null,"Motricité fine : usage feutres, pinceaux…"]
[null,"Autres"]
[null,"Non"]
[null,"GENERALITES ENFANTS"]
[null,"REPAS",null,"TRAITEMENT"]
[null,"Normal",null,"KINESITHERAPIE"]
[null,"Mixé",null,"Motrice"]
[null,"Fausse route",null,"Respiratoire"]
[null,"Gastrostomie",null,"Les deux"]
[null,"Régime spécifique",null,"Aucun"]
[]
[]
[]
[]
[]
[]
[null,null,null,null,"de 9h30 à 21h00\nInscriptions entre 9h00 et 9h30","de 9h30 à 11h30\nInscriptions entre 9h00 et 9h30"]
[null,null,null,"de 15h00 à 21h00\nInscriptions selon heure d'arrivée"]

{"sheet":"Récap global","index":1,"n_rows":444,"n_cols":15,"rows_kept":444,"cut":false,"hidden":false,"merged":[[58,14,62,14],[0,1,0,4],[0,5,0,11]]}
[{"$f":"TODAY()","v":"2025-03-15"}]
["Type","STATUT","NOM","Prénom","Catégorie","NON-CONFIE","confié dès VEN AP","confié à partir de SAM matin seulement ","SIESTE","Taille TSHIRT","Classe","1er ANJOU","Ateliers médico-scientifiques","Envoi confirmation réception inscription","Envoi confirmation courrier médical"]
["F1","VGH","BMLWIH","Zbchib","Parent enfant malade"]
["F1","JXW","YSQEYH","Uopdrmak","Parent enfant malade"]
["F1","IMW","LSZOEB","Fltlwo","Enfant malade",null,1,null,null,"12 ans"]
["F1","ZYR","LAICXH","Unjibztl","Fratrie",null,1,null,"oui","8 ans","CE1"]
["F2","HVY","QDEABACUFE","Tthxrkvwj","Proche/famille endeuillée"]
["F3","ZWJ","SGEXXLK","Yoicnfwlln","Parent adulte semi autonome"]
["F3","ZTX","JYROUPB","Iypdn","Parent adulte semi autonome"]
["F3","UIN","PYQLVHU","Omfesuj","Adulte semi-autonome"]
["F4","RTU","CEYLLYW","Awjcfme","Accompagnant"]
["F4","NXL","NEETBXZ","Eupyvzd","Accompagnant"]
["F4","QWZ","SIPPIPE","Vdwapd","Enfant autre"]
["F5","QXI","SFBLSY","Jqpjdru","Parent adulte autonome"]
["F5","GHC","ZRTUQP","Lqpm","Accompagnant"]
["F5","RMF","ERHHEN","Nwqtgk","Accompagnant"]
["F6","EBF","SBBOXDUFXQG","Lhvbnb","Parent enfant malade"]
["F6","FHX","SSOADQRRVOF","Eope","Parent enfant malade"]
["F6","XVX","UXJKPTFIKIQ","Ifq","Enfant malade",null,1,null,null,null,"4è"]
["F6","GWH","AOSJLSNROMZ","Spvmrqrmq","Fratrie ",null,1,null,null,null,"CM2"]
["F6","QQF","HGSWQVOOZXD","Pbkzx","Fratrie ",null,null,null,null,null,"Terminale"]
["F7","PNK","ZPTYJG","Iqccwrd","Parent enfant malade"]
["F7","CVR","YGXFNB","Tvwbhd","Parent enfant malade"]
["F7","UHB","KULVRU","Cigvnr","Enfant malade",null,1]
["F7","SYP","JOGBAE","Xjzaje","Fratrie ",null,1,null,null,null,"3è"]
["F8","WQQ","KJNVJG","Ohatu","Parent adulte dépendant ",null,null,null,null,null,null,null,"oui"]
["F8","KWN","UGMPJYU","Woue-Ksvov","Parent adulte dépendant ",null,null,null,null,null,null,null,"oui"]
["F8","VLR","FV FRHP","Dgleyt","Adulte dépendant ",null,1,null,"non","M"]
["F9","UWA","ZQZWKWMW","Ysfepffc","Parent enfant malade"]
["F9","JKT","ZFEAAIUG","Nblvnfcwx","Parent enfant malade"]
["F9","CAT","EPDBFHBQ","Omdkk","Enfant malade",null,1]
["F9","XOH","ZBEAGWPC","Mfhw","Fratrie ",null,1,null,null,null,"CM1"]
["F9","BJU","TRHHKBKP","Kebtg","Fratrie ",null,1,null,null,null,"GS"]
["F10","ORZ","PBIQUG","Haiwdb","Parent enfant malade",null,null,null,null,null,null,1]
["F10","GLO","LALXGH","Zospj","Enfant malade",null,null,1,"non","12 ans","CE2 ULIS"]
["F11","SNH","AHWQQ","Zogjzdz","Parent enfant malade"]
["F11","EZU","QYCLWICC","Mgbsn","Parent enfant malade"]
["F11","KMH","DDIBIDYHZVV","Vks","Enfant malade",null,1]
["F11","BCK","ETQUOMOL","Tcadgy","Fratrie ",null,1,null,null,null,"CM1"]
["F12","LCK","CHFLKEJYV","Nrujo","Proche/famille endeuillée"]
["F12","YNS","XQSKLQURE","Lgkhjx","Proche/famille endeuillée"]
["F13","VCY","JBNHXUF","Vvqdgxib","Proche/famille endeuillée"]
["F13","ZHV","XLXPTHM","Avszib","Proche/famille endeuillée"]
["F14","WSA","UCEHZ","Bgboao","Adulte malade autonome ",null,null,null,null,null,null,null,"oui"]
["F14","FJG","OYJHE","Lqwljx","Conjoint('e)",null,null,null,null,null,null,null,"oui"]
["F15","SZU","KWWORTB","Brh","Proche/famille endeuillée"]
["F15","ICS","WMNPQFH","Ygdtsyrp","Proche/famille endeuillée"]
["F16","MUX","YIZROQLQY","Svbaujz","Proche/famille endeuillée",null,null,null,null,null,null,null,"oui"]
["F16","PQV","RXXRFTLKW","Lxuqg","Proche/famille endeuillée",null,null,null,null,null,null,null,"oui"]
["F17","YJX","LQBVMT","Wjcjsgp","Proche/famille endeuillée",null,null,null,null,null,null,null,"oui"]
["F17","AHW","LGAIOF","Rfvnacyv","Proche/famille endeuillée",null,null,null,null,null,null,null,"oui"]
["F18","YFH","XQTBLJW","Icjmviv","Proche/famille endeuillée"]
["F18","QHH","ZMMSWPRUSDL","Cmvey","Proche/famille endeuillée"]
["F19","EGV","EXBF","Sacioobe","Adulte malade autonome "]
["F19","PQU","PZIS","Sxggluff","Conjoint('e)"]
["F20","NZY","FTOIRKCZ","Iszsm","Proche/famille endeuillée"]
["F20","IEH","WKDXZAFZ","Nrcwkpkj","Proche/famille endeuillée"]
["F21","RPA","IWIFFWQ","Kck","Adulte semi-autonome"]
["F21","IMU","BOJQKUB","Qrfahliiuf","Parent adulte semi autonome"]
["F22","UOP","ZOQDH","Zakjrhvpr","Parent adulte dépendant ",null,null,null,null,null,null,null,"oui"]
["F22","UTJ","KYYIY","Qoow","Adulte semi-autonome"]
["F23","QVS","HRHMKI","Rcjol","Adulte malade autonome ",null,null,null,null,null,null,null,"oui"]
["F24","CAC","BDYNUMBB","Sodqx","Proche/famille endeuillée",null,null,null,null,null,null,null,"non"]
["F25","HTO","SPSIFLAKNUJAO","Cwlflvch","Parent adulte autonome",null,null,null,null,null,null,null,"oui"]
["F26","VWP","VUDOQYEFVU","Lwyicc","Parent enfant malade"]
["F26","URQ","HLAQLVIUMT","Krtmkw","Enfant malade",null,1,null,null,null,"TEM"]
["F26","OIL","EEHLGEO","Osaoqtq","Accompagnant"]
["F26","SRB","TNDQIUJ","Hecgdj","Accompagnant"]
["F27","TVX","JIJKJGD QAZEHTTUN","Uxia","Parent adulte dépendant ",null,null,null,null,null,null,null,"oui"]
["F27","IBJ","FZQCYVM JDBDKQRBZ","Yeztpfdtx","Parent adulte dépendant ",null,null,null,null,null,null,null,"oui"]
["F27","YWD","LCDFDMH XFRDAETHA","Auurgbi","Adulte dépendant ",null,1,null,null,"M/L"]
["F28","BAA","TBRDJW","Cabktpgpq","Proche/famille endeuillée"]
["F28","CDC","PILGPB","Jffr","Proche/famille endeuillée"]
["F29","BTN","XFWLALM","Npbhuvz","Parent adulte semi autonome",null,null,null,null,null,null,null,"oui"]
["F29","TCR","PTPWEAO","Ndvrffsbz","Parent adulte semi autonome"]
["F29","ZFR","MVYCBLO","Wwgtl","Adulte semi-autonome",1]
["F30","RBV","EHDRB","Mcglrb","Parent adulte autonome"]
["F30","DYR","NHMNV","Labxbo","Parent adulte autonome"]
["F30","GGL","KFZOF","Gvivj","Adulte malade autonome "]
["F31","VIY","HKYUWJXV US XHULL","Jekdhcq","Parent enfant malade"]
["F31","VBG","MNQVWJGF","Wmsauyb","Parent enfant malade"]
["F31","CWL","NTEHWTID","Adzmjm","Enfant malade",null,1]
["F32","UVQ","PNDXNHK","Udncjt","Parent enfant malade",null,null,null,null,null,null,1,"oui"]
["F32","EZN","MBDIIP","Swnzhzk","Parent enfant malade",null,null,null,null,null,null,null,"oui"]
["F32","QKW","EFMXVM","Xirxb","Enfant malade",0,0,1,"non mais temps calme après repas midi","6ans","MS"]
["F33","GOB","IUZTEM","Tamodoqc","Parent enfant malade"]
["F33","PIO","DLCSD","Qkmxeou","Parent enfant malade"]
["F33","WZX","DSJKP","Auzc","Enfant malade"]
["F34","ZTY","IUUWXZZG","Nupua","Proche/famille endeuillée",null,null,null,null,null,null,null,"non"]
["F34","FQD","CZZSDDDC","Wklvukyyf","Proche/famille endeuillée",null,null,null,null,null,null,null,"non"]
["F34","SSY","GHXETNTJ","Ghbbee","Proche/famille endeuillée",null,null,null,null,null,"2AEPA",null,"non"]
["F35","QMY","WGQVXWA","Aruglle","Parent enfant malade",null,null,null,null,null,null,1]
["F35","ODH","QBGQKVO","Tins-Xphk","Enfant malade"]
["F35","MFZ","JOQFDN","Tnsvko","Fratrie ",null,1]
["F35","RLN","H&#958;WJCWTAGR","Vocsvfr","Accompagnant"]
["F36","LAE","VTEGT","Qiurg","Parent enfant malade",null,null,null,null,null,null,1]
["F36","WDF","ETHSW","Pwijj","Parent enfant malade"]
["F36","JJU","IUESP","Zbcgv","Enfant malade",null,1,null,null,null,"CE1"]
["F36","JWC","SENFY","Qjbe","Fratrie ",null,1,null,null,null,"6è"]
["F37","IKY","WWWVIHV","Zbdtbp","Parent enfant malade"]
["F37","CMY","OPFAW","Prwgxxp","Parent enfant malade"]
["F37","YYX","BTYEF","Iedkpsi","Enfant malade",null,1]
["F37","ZAE","HITIT","Whcdm","Fratrie ",null,1,null,null,null,"CM2"]
["F38","PHW","XILFK","Uydzmon","Parent enfant malade"]
["F38","LQT","PEZMG","Aigi","Parent enfant malade"]
["F38","BXC","QLMII","Okodu","Enfant malade",null,1]
["F38","LRB","IIPYI","Acnwtb","Fratrie ",null,1,null,null,null,"CE1"]
["F39","FIA","ZJIRK","Shjdaiw","Proche/famille endeuillée"]
["F39","OJJ","ISONK","Mycdlbd","Proche/famille endeuillée"]
["F39","WKA","HYXMU","Wnrz","Proche/famille endeuillée",null,1,null,null,null,"CE2"]
["F39","HFT","VEIDF","Vwzh","Proche/famille endeuillée",null,1,null,null,null,"MS"]
["F40","GNC","COIDFB","Mzjnyl","Parent enfant malade",null,null,null,null,null,null,1]
["F40","UCJ","DNKKDBTQ","Lhxykx","Parent enfant malade"]
["F40","CII","NNAYMP XKUWERML","Cpfeueh","Enfant malade",null,null,1]
["F40","NFN","AUNNJM GPSVIYMJ","Uhqxy","Fratrie ",null,null,1,null,null,"CM2"]
["F41","PPK","QYOJIVN","Gjlaizhx","Parent enfant malade"]
["F41","QHI","QUJMVFP","Jauvw","Parent enfant malade"]
["F41","WQQ","SVMWYVV","Qafti","Enfant malade",null,1]
["F41","UMO","IICLGXS","Iulufqj","Fratrie ",null,1,null,null,null,"GS"]
["F42","IWJ","RCIP","Yfhoi","Adulte malade autonome ",null,null,null,null,null,null,null,"oui"]
["F42","PYF","KDZC","Pzklfx","Enfant autre",null,1,null,null,"12ans","CM1"]
["F42","LWV","THTU","Yrcv","Enfant autre",1,null,null,null,null,"2nde"]
["F43","LIX","TXNTVHY","Pphazn","Parent adulte autonome"]
["F43","STE","BRQNYNB","Milpm","Accompagnant"]
["F43","RZH","WUXBNA QZRZGWZ","Rtjkl","Adulte malade autonome "]
["F43","DVW","OEZIMAA","Dukdua","Accompagnant"]
["F43","MKT","ILUQVNPTY","Uookhk","Conjoint('e)"]
["F44","FWF","GQQYTA","Pymxlgv","Parent enfant malade"]
["F44","QJF","OCWHSQ","Jjhkvqdm","Parent enfant malade"]
["F44","CMH","VHXVJV","Fucesi","Enfant malade",null,1,null,"non",null,"GS"]
["F44","ZYE","AXESHF","Dmzqp","Fratrie ",null,1,null,null,null,"GS"]
["F44","SBC","BXWVAN","Eyjy","Fratrie ",null,1,null,null,null,"Crèche"]
["F45","SXU","PWGGI","Eicgnjz","Parent adulte dépendant "]
["F45","LEP","XUGHE","Gsaagsxx","Parent adulte dépendant "]
["F45","JGQ","IMSKH","Hprusd","Adulte dépendant ",null,1]
["F45","PSV","YMHLA","Ltnxovfq","Fratrie ",1,null,null,null,null,"2nde"]
["F46","FGA","NVEI","Diazjm","Parent adulte autonome"]
["F46","MHE","CUGW","Hqyh","Adulte malade autonome "]
["F46","MTZ","ILAV","Iczmf","Fratrie ",1,null,null,null,null,"4è"]
["F46","PIN","XIMZCLGLG","Zftoo","Accompagnant"]
["F47","ZQX","AYOUQ","Tgiphtlp","Parent enfant malade"]
["F47","DTP","IDCZX","Awkn-Iwvxcw","Parent enfant malade"]
["F47","KDY","GDUXU","Gmf","Enfant malade",1]
["F47","JBA","POZAO","Xhbxv","Fratrie ",1,null,null,null,null,"3è"]
["F47","PBX","POOMW","Fzxrd","Fratrie ",1,null,null,null,null,"GS"]
["F47","WWQ","MTGBM","Cldpya","Fratrie ",1,null,null,null,null,"Crèche"]
["F48","CVX","WR UMIGA","Nmceae","Parent enfant malade"]
["F48","XMC","DXKMR OP EXMUK","Jwnagdfb","Parent enfant malade"]
["F48","DOH","TP MSTIY","Sohagw","Enfant malade",null,1,null,null,null,"6è"]
["F48","SDJ","ESBYEBN","Qzmfe","Fratrie ",null,1,null,null,null,"4è"]
["F48","DSB","JVAOTIK","Iexqf","Fratrie ",null,1,null,null,null,"CP"]
["F48","NLI","XL OSPFS","Pqsf","Fratrie ",null,1,null,null,null,"PS"]
["F49","BTD","RFMMJR","Dpdktjkm","Parent enfant malade",null,null,null,null,null,null,1]
["F49","IBV","HMVEMF","Xcunjsq","Enfant malade",null,null,1,"Peut être proposée mais dort rarement hors maison","8 ans"]
["F49","EXX","ALXLOP","Djrqjo","Fratrie ",null,null,1,null,"S","6è"]
["F49","AXW","YCNQBC","Qtmrfy","Fratrie ",1,null,null,null,null,"Terminale"]
["F50","JBW","LV ZPYZ LUZNKJ","Obxhr","Parent enfant malade"]
["F50","JMY","ZW WTRI EOKSDO","Snbuia","Parent enfant malade"]
["F50","GAX","UV WTZS PYYHQF","Kbtfvi","Enfant malade",null,1]
["F50","GHJ","TI IOBA WMEKSZ","Bznqmz","Fratrie ",null,1,null,null,null,"PS"]
["F50","HSE","SR SKJX DMOZQV","Lzdwd","Fratrie ",1,null,null,null,null,"2nde"]
["F51","ZNH","NDIFLEL","Cbhpzpd","Parent adulte autonome"]
["F51","BHX","WLMBQ","Wdpwm","Adulte malade autonome "]
["F51","VBA","FYMREWL","Anvvij","Fratrie ",null,null,null,null,null,"1è"]
["F51","ZJF","TOIODJN","Uzjlj","Fratrie ",null,null,null,null,null,"2nde"]
["F51","SFS","OOINNEZ","Hsvhw","Fratrie ",null,null,1,null,null,"5è"]
["F52","VOY","MCNVDSG","Hsei-Pfuzz","Parent adulte dépendant ",null,null,null,null,null,null,null,"oui"]
["F53","DEY","EIJWP","Gbyoc","Proche/famille endeuillée"]
["F53","JYJ","JSSCB BOGYRRP","Dwbcqq","Proche/famille endeuillée"]
["F53","MCF","BXDOEDT","Vbdodevov","Adulte malade autonome "]
["F53","ALI","BBWTW","Vvysddpkr","Proche/famille endeuillée"]
["F53","JVU","UQGCSTA","Nnkrzy","Proche/famille endeuillée"]
["F53","ODL","TBLOLOI","Ssmibk","Proche/famille endeuillée"]
["F54","AFK","UHXSRW","Kjze","Parent enfant malade"]
["F54","HAN","UMNSFL","Obikycnb-Rthewl","Parent enfant malade"]
["F54","AOT","ARIWIL","Vqmbscfw","Enfant malade",null,1,null,"non","M","1è"]
["F54","QQJ","OGBNETI","Fougrb","Enfant malade",null,1,null,null,null,"1è"]
["F55","UDA","WTVOAAKCV","Ssccx","Parent enfant malade"]
["F55","RMO","KBSVFGWCC","Jmhdvu","Parent enfant malade"]
["F55","UXQ","YICRIFVVH","Looac","Enfant malade",null,1,null,null,"12 ans","IME"]
["F56","KVJ","TUPRODPVQP UL FLXDNN","Nxggvz-Jdinn","Parent enfant malade",null,null,null,null,null,null,1]
["F56","UMN","KWWLXSCOJE HV PSPZRU","Edxmg","Enfant malade",null,1,null,null,null,"MS"]
["F56","VWW","TJVCLEQQCI QK SUYDRJ","Glek","Fratrie ",null,null,null,null,null,"CM2"]
["B1","UEK","WBIYXWQ","Wto","Bénévole",null,null,null,null,"L"]
["B2","QHV","AJYZDQM","Lfmwbu","Bénévole",null,null,null,null,"XL"]
["B3","KTQ","TPNEIISOKPX","Wir","Bénévole",null,null,null,null,"M"]
["B4","KHW","KYIMIOFA","Tncnym","Bénévole",null,null,null,null,"XL"]
["B5","NUU","BDWQHN","Pblqgv","Bénévole",null,null,null,null,"L"]
["B6","MFD","CZFJQL","Jkfveurn","Bénévole",null,null,null,null,"L"]
["B7","GWO","CVOQHNS","Dgrbxrncm","Bénévole",null,null,null,null,"M"]
["B8","DGO","LDXKKOR","Eaxjq","Bénévole",null,null,null,null,"S"]
["B9","UKH","FFBDSFE","Pcega","Bénévole",null,null,null,null,"S"]
["B10","YMX","GIKTAHFU","Lhlok","Bénévole",null,null,null,null,"S"]
["B11","LEZ","NLTEVIA","Nnlkiew","Bénévole",null,null,null,null,"XL"]
["B12","LTG","ANCPSCLJ-OADSL","Bmrutdwk","Bénévole",null,null,null,null,"XL"]
["B13","QBQ","PCONR","Wvzwu-Qthzjq","Bénévole",null,null,null,null,"M"]
["B14","QGP","PBGERN","Swsvcxtkit","Bénévole",null,null,null,null,"2XL"]
["B15","AAA","AWYB","Shon","Bénévole",null,null,null,null,"M"]
["B16","VKG","RJ PHFNE","Bbxyhjwtny","Bénévole",null,null,null,null,"M"]
["B17","WWX","PPVGA","Wfunz","Bénévole",null,null,null,null,"M"]
["B18","AKJ","BIOQ","Swxvk","Bénévole",null,null,null,null,"S"]
["B19","RZL","TXLML","Hwsjyxvo","Bénévole",null,null,null,null,"M"]
["B20","KBY","NDRQOOEPM","Bealemmt","Bénévole",null,null,null,null,"XL"]
["B21","EOZ","UCMRG","Nylvgyvz","Bénévole",null,null,null,null,"M"]
["B22","TGD","ZBCOUN","Twajqiqc","Bénévole",null,null,null,null,"S"]
["B23","VTC","RTRZVB","Suhfxd","Bénévole",null,null,null,null,"S"]
["B24","OVK","GNEBWULFJDRLOVXC","Yjatvdt","Bénévole",null,null,null,null,"L"]
["B25","TPH","XEXFOWJS","Xpymueyz","Bénévole",null,null,null,null,"M"]
["B26","IJV","WHIURX","Vjplztl","Bénévole",null,null,null,null,"XL"]
["B27","DET","PIEDZWIUL","Dnvs-Gpevvq","Bénévole",null,null,null,null,"L (logistique)"]
["B28","JSR","EONOFNAAD","Fpckrbpy","Bénévole",null,null,null,null,"L (logistique)"]
["B29","XHY","QQTOOKW","Pgayrcg","Bénévole",null,null,null,null,"M"]
["F57","BAD","OEHQLCRGZ","Gppynz","Parent enfant malade"]
["F57","ZKE","QHJIZMN","Uspzmym","Parent enfant malade"]
["F57","WLH","WIKYINTXQ","Stne Islldv","1er ANJOU"]
["B30","ALA","FYUKIVP","Dmgam","Bénévole",null,null,null,null,"XL"]
["I1","UCZ","YMULROU","Inwkymm","Intervenant/invité"]
["B31","WYQ","BXWKWR","Okiyy","Bénévole"]
["B32","CKQ","EZOQYSTZX","Nluc","Enfant malade",null,null,null,null,"L"]
[]
[]
[]
[]
[]
[]
[]
[]
[]
[]
[]
[]
[]
[]
[]
[]
[]
[]
[]
[]
[]
[]
[]
[]
[]
[]
[]
[]
[]
[]
[]
[]
[]
[]
[]
[]
[]
[]
[]
[]
[]
[]
[]
[]
[]
[]
[]
[]
[]
[]
[]
[]
[]
[]
[]
[]
[]
[]
[]
[]
[]
[]
[]
[]
[]
[]
[]
[]
[]
[]
[]
[]
[]
[]
[]
[]
[]
[]
[]
[]
[]
[]
[]
[]
[]
[]
[]
[]
[]
[]
[]
[]
[]
[]
[]
[]
[]
[]
[]
[]
[]
[]
[]
[]
[]
[]
[]
[]
[]
[]
[]
[]
[]
[]
[]
[]
[]
[]
[]
[]
[]
[]
[]
[]
[]
[]
[]
[]
[]
[]
[]
[]
[]
[]
[]
[]
[]
[]
[]
[]
[]
[]
[]
[]
[]
[]
[]
[]
[]
[]
[]
[]
[]
[]
[]
[]
[]
[]
[]
[]
[]
[]
[]
[]
[]
[]
[]
[]
[]
[]
[]
[]
[]
[]
[]
[]
[]
[]
[]
[]
[]
[]
[]
[]
[]
[]
[]
[]
[]
[]
[]
[]
[]
[]
[]
[]
[]
[]
[]
[]
[]
[]
[]
[]
[]
[]
[]
[]
[]
[]
[]
[]
[]
[]
[]
[]
[]
[]
[]
[]
[]
[]
[]
[]
[null,null,null,null,null,null,{"$f":"SUM(G7:G430)","v":39},{"$f":"SUM(H7:H430)","v":7}]

{"sheet":"T-shirts (2)","index":2,"n_rows":228,"n_cols":9,"rows_kept":228,"cut":false,"hidden":false,"merged":[]}
["NOM","Prénom","AGE",null,"Taille TSHIRT","confié","à commander ?"]
[{"$f":"'Récap global'!C3","v":"BMLWIH"},{"$f":"'Récap global'!D3","v":"Zbchib"},{"$f":"'Récap global'!#REF!","v":{"$error":"#REF!"}},{"$f":"IF(A2=FALSE,0,1)","v":1},{"$f":"IF(D2=1,'Récap global'!J3)","v":0},{"$f":"'Récap global'!G45+'Récap global'!H45","v":0},null,null,"OUI"]
[{"$f":"'Récap global'!C4","v":"YSQEYH"},{"$f":"'Récap global'!D4","v":"Uopdrmak"},{"$f":"'Récap global'!#REF!","v":{"$error":"#REF!"}},{"$f":"IF(A3=FALSE,0,1)","v":1},{"$f":"IF(D3=1,'Récap global'!J4)","v":0},{"$f":"'Récap global'!G46+'Récap global'!H46","v":0}]
[{"$f":"'Récap global'!C5","v":"LSZOEB"},{"$f":"'Récap global'!D5","v":"Fltlwo"},{"$f":"'Récap global'!#REF!","v":{"$error":"#REF!"}},{"$f":"IF(A4=FALSE,0,1)","v":1},{"$f":"IF(D4=1,'Récap global'!J5)","v":"12 ans"},{"$f":"'Récap global'!G132+'Récap global'!H132","v":1}]
[{"$f":"'Récap global'!C6","v":"LAICXH"},{"$f":"'Récap global'!D6","v":"Unjibztl"},{"$f":"'Récap global'!#REF!","v":{"$error":"#REF!"}},{"$f":"IF(A5=FALSE,0,1)","v":1},{"$f":"IF(D5=1,'Récap global'!J6)","v":"8 ans"},{"$f":"'Récap global'!G134+'Récap global'!H134","v":0}]
[{"$f":"'Récap global'!C7","v":"QDEABACUFE"},{"$f":"'Récap global'!D7","v":"Tthxrkvwj"},{"$f":"'Récap global'!#REF!","v":{"$error":"#REF!"}},{"$f":"IF(A6=FALSE,0,1)","v":1},{"$f":"IF(D6=1,'Récap global'!J7)","v":0},{"$f":"'Récap global'!G135+'Récap global'!H135","v":1}]
[{"$f":"'Récap global'!C8","v":"SGEXXLK"},{"$f":"'Récap global'!D8","v":"Yoicnfwlln"},{"$f":"'Récap global'!#REF!","v":{"$error":"#REF!"}},null,{"$f":"'Récap global'!J176","v":"M"},{"$f":"'Récap global'!G176+'Récap global'!H176","v":1}]
[{"$f":"'Récap global'!C9","v":"JYROUPB"},{"$f":"'Récap global'!D9","v":"Iypdn"},{"$f":"'Récap global'!#REF!","v":{"$error":"#REF!"}},null,{"$f":"'Récap global'!J178","v":0},{"$f":"'Récap global'!G178+'Récap global'!H178","v":0}]
[{"$f":"'Récap global'!C10","v":"PYQLVHU"},{"$f":"'Récap global'!D10","v":"Omfesuj"},{"$f":"'Récap global'!#REF!","v":{"$error":"#REF!"}},null,{"$f":"'Récap global'!J205","v":"S"},{"$f":"'Récap global'!G205+'Récap global'!H205","v":0}]
[{"$f":"'Récap global'!C11","v":"CEYLLYW"},{"$f":"'Récap global'!D11","v":"Awjcfme"},{"$f":"'Récap global'!#REF!","v":{"$error":"#REF!"}},null,{"$f":"'Récap global'!J206","v":"S"},{"$f":"'Récap global'!G206+'Récap global'!H206","v":0}]
[{"$f":"'Récap global'!C12","v":"NEETBXZ"},{"$f":"'Récap global'!D12","v":"Eupyvzd"},{"$f":"'Récap global'!#REF!","v":{"$error":"#REF!"}},null,{"$f":"'Récap global'!J210","v":"L (logistique)"},{"$f":"'Récap global'!G210+'Récap global'!H210","v":0}]
[{"$f":"'Récap global'!C13","v":"SIPPIPE"},{"$f":"'Récap global'!D13","v":"Vdwapd"},{"$f":"'Récap global'!#REF!","v":{"$error":"#REF!"}},null,{"$f":"'Récap global'!J211","v":"L (logistique)"},{"$f":"'Récap global'!G211+'Récap global'!H211","v":0}]
[{"$f":"'Récap global'!C14","v":"SFBLSY"},{"$f":"'Récap global'!D14","v":"Jqpjdru"},{"$f":"'Récap global'!#REF!","v":{"$error":"#REF!"}},null,{"$f":"'Récap global'!J212","v":"M"},{"$f":"'Récap global'!G212+'Récap global'!H212","v":0}]
[{"$f":"'Récap global'!C15","v":"ZRTUQP"},{"$f":"'Récap global'!D15","v":"Lqpm"},{"$f":"'Récap global'!#REF!","v":{"$error":"#REF!"}},{"$f":"IF(A14=FALSE,0,1)","v":1},{"$f":"IF(D14=1,'Récap global'!J15)","v":0},{"$f":"'Récap global'!G9+'Récap global'!H9","v":0}]
[{"$f":"'Récap global'!C16","v":"ERHHEN"},{"$f":"'Récap global'!D16","v":"Nwqtgk"},{"$f":"'Récap global'!#REF!","v":{"$error":"#REF!"}},1,{"$f":"IF(D15=1,'Récap global'!J16)","v":0},{"$f":"'Récap global'!G10+'Récap global'!H10","v":0}]
[{"$f":"'Récap global'!C17","v":"SBBOXDUFXQG"},{"$f":"'Récap global'!D17","v":"Lhvbnb"},{"$f":"'Récap global'!#REF!","v":{"$error":"#REF!"}},1,{"$f":"IF(D16=1,'Récap global'!J17)","v":0},{"$f":"'Récap global'!G21+'Récap global'!H21","v":0}]
[{"$f":"'Récap global'!C18","v":"SSOADQRRVOF"},{"$f":"'Récap global'!D18","v":"Eope"},{"$f":"'Récap global'!#REF!","v":{"$error":"#REF!"}},1,{"$f":"IF(D17=1,'Récap global'!J18)","v":0},{"$f":"'Récap global'!G22+'Récap global'!H22","v":0}]
[{"$f":"'Récap global'!C19","v":"UXJKPTFIKIQ"},{"$f":"'Récap global'!D19","v":"Ifq"},{"$f":"'Récap global'!#REF!","v":{"$error":"#REF!"}},1,{"$f":"IF(D18=1,'Récap global'!J19)","v":0},{"$f":"'Récap global'!G23+'Récap global'!H23","v":0}]
[{"$f":"'Récap global'!C20","v":"AOSJLSNROMZ"},{"$f":"'Récap global'!D20","v":"Spvmrqrmq"},{"$f":"'Récap global'!#REF!","v":{"$error":"#REF!"}},1,{"$f":"IF(D19=1,'Récap global'!J20)","v":0},{"$f":"'Récap global'!G26+'Récap global'!H26","v":0}]
[{"$f":"'Récap global'!C21","v":"HGSWQVOOZXD"},{"$f":"'Récap global'!D21","v":"Pbkzx"},{"$f":"'Récap global'!#REF!","v":{"$error":"#REF!"}},1,{"$f":"IF(D20=1,'Récap global'!J21)","v":0},{"$f":"'Récap global'!G34+'Récap global'!H34","v":0}]
[{"$f":"'Récap global'!C22","v":"ZPTYJG"},{"$f":"'Récap global'!D22","v":"Iqccwrd"},{"$f":"'Récap global'!#REF!","v":{"$error":"#REF!"}},1,{"$f":"IF(D21=1,'Récap global'!J22)","v":0},{"$f":"'Récap global'!G39+'Récap global'!H39","v":1}]
[{"$f":"'Récap global'!C23","v":"YGXFNB"},{"$f":"'Récap global'!D23","v":"Tvwbhd"},{"$f":"'Récap global'!#REF!","v":{"$error":"#REF!"}},1,{"$f":"IF(D22=1,'Récap global'!J23)","v":0},{"$f":"'Récap global'!G40+'Récap global'!H40","v":0}]
[{"$f":"'Récap global'!C24","v":"KULVRU"},{"$f":"'Récap global'!D24","v":"Cigvnr"},{"$f":"'Récap global'!#REF!","v":{"$error":"#REF!"}},1,{"$f":"IF(D23=1,'Récap global'!J24)","v":0},{"$f":"'Récap global'!G55+'Récap global'!H55","v":0}]
[{"$f":"'Récap global'!C25","v":"JOGBAE"},{"$f":"'Récap global'!D25","v":"Xjzaje"},{"$f":"'Récap global'!#REF!","v":{"$error":"#REF!"}},1,{"$f":"IF(D24=1,'Récap global'!J25)","v":0},{"$f":"'Récap global'!G58+'Récap global'!H58","v":0}]
[{"$f":"'Récap global'!C26","v":"KJNVJG"},{"$f":"'Récap global'!D26","v":"Ohatu"},{"$f":"'Récap global'!#REF!","v":{"$error":"#REF!"}},1,{"$f":"IF(D25=1,'Récap global'!J26)","v":0},{"$f":"'Récap global'!G74+'Récap global'!H74","v":0}]
[{"$f":"'Récap global'!C27","v":"UGMPJYU"},{"$f":"'Récap global'!D27","v":"Woue-Ksvov"},{"$f":"'Récap global'!#REF!","v":{"$error":"#REF!"}},1,{"$f":"IF(D26=1,'Récap global'!J27)","v":0},{"$f":"'Récap global'!G75+'Récap global'!H75","v":0}]
[{"$f":"'Récap global'!C28","v":"FV FRHP"},{"$f":"'Récap global'!D28","v":"Dgleyt"},{"$f":"'Récap global'!#REF!","v":{"$error":"#REF!"}},1,{"$f":"IF(D27=1,'Récap global'!J28)","v":"M"},{"$f":"'Récap global'!G82+'Récap global'!H82","v":1}]
[{"$f":"'Récap global'!C29","v":"ZQZWKWMW"},{"$f":"'Récap global'!D29","v":"Ysfepffc"},{"$f":"'Récap global'!#REF!","v":{"$error":"#REF!"}},1,{"$f":"IF(D28=1,'Récap global'!J29)","v":0},{"$f":"'Récap global'!G99+'Récap global'!H99","v":1}]
[{"$f":"'Récap global'!C30","v":"ZFEAAIUG"},{"$f":"'Récap global'!D30","v":"Nblvnfcwx"},{"$f":"'Récap global'!#REF!","v":{"$error":"#REF!"}},1,{"$f":"IF(D29=1,'Récap global'!J30)","v":0},{"$f":"'Récap global'!G100+'Récap global'!H100","v":0}]
[{"$f":"'Récap global'!C31","v":"EPDBFHBQ"},{"$f":"'Récap global'!D31","v":"Omdkk"},{"$f":"'Récap global'!#REF!","v":{"$error":"#REF!"}},1,{"$f":"IF(D30=1,'Récap global'!J31)","v":0},{"$f":"'Récap global'!G105+'Récap global'!H105","v":0}]
[{"$f":"'Récap global'!C32","v":"ZBEAGWPC"},{"$f":"'Récap global'!D32","v":"Mfhw"},{"$f":"'Récap global'!#REF!","v":{"$error":"#REF!"}},1,{"$f":"IF(D31=1,'Récap global'!J32)","v":0},{"$f":"'Récap global'!G117+'Récap global'!H117","v":0}]
[{"$f":"'Récap global'!C33","v":"TRHHKBKP"},{"$f":"'Récap global'!D33","v":"Kebtg"},{"$f":"'Récap global'!#REF!","v":{"$error":"#REF!"}},1,{"$f":"IF(D32=1,'Récap global'!J33)","v":0},{"$f":"'Récap global'!G118+'Récap global'!H118","v":1}]
[{"$f":"'Récap global'!C34","v":"PBIQUG"},{"$f":"'Récap global'!D34","v":"Haiwdb"},{"$f":"'Récap global'!#REF!","v":{"$error":"#REF!"}},1,{"$f":"IF(D33=1,'Récap global'!J34)","v":0},{"$f":"'Récap global'!G119+'Récap global'!H119","v":1}]
[{"$f":"'Récap global'!C35","v":"LALXGH"},{"$f":"'Récap global'!D35","v":"Zospj"},{"$f":"'Récap global'!#REF!","v":{"$error":"#REF!"}},1,{"$f":"IF(D34=1,'Récap global'!J35)","v":"12 ans"},{"$f":"'Récap global'!G125+'Récap global'!H125","v":0}]
[{"$f":"'Récap global'!C36","v":"AHWQQ"},{"$f":"'Récap global'!D36","v":"Zogjzdz"},{"$f":"'Récap global'!#REF!","v":{"$error":"#REF!"}},1,{"$f":"IF(D35=1,'Récap global'!J36)","v":0},{"$f":"'Récap global'!G129+'Récap global'!H129","v":0}]
[{"$f":"'Récap global'!C37","v":"QYCLWICC"},{"$f":"'Récap global'!D37","v":"Mgbsn"},{"$f":"'Récap global'!#REF!","v":{"$error":"#REF!"}},1,{"$f":"IF(D36=1,'Récap global'!J37)","v":0},{"$f":"'Récap global'!G133+'Récap global'!H133","v":0}]
[{"$f":"'Récap global'!C38","v":"DDIBIDYHZVV"},{"$f":"'Récap global'!D38","v":"Vks"},{"$f":"'Récap global'!#REF!","v":{"$error":"#REF!"}},1,{"$f":"IF(D37=1,'Récap global'!J38)","v":0},{"$f":"'Récap global'!G136+'Récap global'!H136","v":0}]
[{"$f":"'Récap global'!C39","v":"ETQUOMOL"},{"$f":"'Récap global'!D39","v":"Tcadgy"},{"$f":"'Récap global'!#REF!","v":{"$error":"#REF!"}},1,{"$f":"IF(D38=1,'Récap global'!J39)","v":0},{"$f":"'Récap global'!G147+'Récap global'!H147","v":0}]
[{"$f":"'Récap global'!C40","v":"CHFLKEJYV"},{"$f":"'Récap global'!D40","v":"Nrujo"},{"$f":"'Récap global'!#REF!","v":{"$error":"#REF!"}},1,{"$f":"IF(D39=1,'Récap global'!J40)","v":0},{"$f":"'Récap global'!G148+'Récap global'!H148","v":0}]
[{"$f":"'Récap global'!C41","v":"XQSKLQURE"},{"$f":"'Récap global'!D41","v":"Lgkhjx"},{"$f":"'Récap global'!#REF!","v":{"$error":"#REF!"}},1,{"$f":"IF(D40=1,'Récap global'!J41)","v":0},{"$f":"'Récap global'!G155+'Récap global'!H155","v":1}]
[{"$f":"'Récap global'!C42","v":"JBNHXUF"},{"$f":"'Récap global'!D42","v":"Vvqdgxib"},{"$f":"'Récap global'!#REF!","v":{"$error":"#REF!"}},1,{"$f":"IF(D41=1,'Récap global'!J42)","v":0},{"$f":"'Récap global'!G156+'Récap global'!H156","v":0}]
[{"$f":"'Récap global'!C43","v":"XLXPTHM"},{"$f":"'Récap global'!D43","v":"Avszib"},{"$f":"'Récap global'!#REF!","v":{"$error":"#REF!"}},1,{"$f":"IF(D42=1,'Récap global'!J43)","v":0},{"$f":"'Récap global'!G157+'Récap global'!H157","v":0}]
[{"$f":"'Récap global'!C44","v":"UCEHZ"},{"$f":"'Récap global'!D44","v":"Bgboao"},{"$f":"'Récap global'!#REF!","v":{"$error":"#REF!"}},null,{"$f":"'Récap global'!J168","v":0},{"$f":"'Récap global'!G168+'Récap global'!H168","v":0}]
[{"$f":"'Récap global'!C45","v":"OYJHE"},{"$f":"'Récap global'!D45","v":"Lqwljx"},{"$f":"'Récap global'!#REF!","v":{"$error":"#REF!"}},null,{"$f":"'Récap global'!J172","v":0},{"$f":"'Récap global'!G172+'Récap global'!H172","v":0}]
[{"$f":"'Récap global'!C46","v":"KWWORTB"},{"$f":"'Récap global'!D46","v":"Brh"},{"$f":"'Récap global'!#REF!","v":{"$error":"#REF!"}},{"$f":"IF(A45=FALSE,0,1)","v":1},{"$f":"IF(D45=1,'Récap global'!J46)","v":0},{"$f":"'Récap global'!G187+'Récap global'!H187","v":0}]
[{"$f":"'Récap global'!C47","v":"WMNPQFH"},{"$f":"'Récap global'!D47","v":"Ygdtsyrp"},{"$f":"'Récap global'!#REF!","v":{"$error":"#REF!"}},null,{"$f":"'Récap global'!J190","v":"M"},{"$f":"'Récap global'!G190+'Récap global'!H190","v":0}]
[{"$f":"'Récap global'!C48","v":"YIZROQLQY"},{"$f":"'Récap global'!D48","v":"Svbaujz"},{"$f":"'Récap global'!#REF!","v":{"$error":"#REF!"}},null,{"$f":"'Récap global'!J191","v":"S"},{"$f":"'Récap global'!G191+'Récap global'!H191","v":0}]
[{"$f":"'Récap global'!C49","v":"RXXRFTLKW"},{"$f":"'Récap global'!D49","v":"Lxuqg"},{"$f":"'Récap global'!#REF!","v":{"$error":"#REF!"}},null,{"$f":"'Récap global'!J192","v":"S"},{"$f":"'Récap global'!G192+'Récap global'!H192","v":0}]
[{"$f":"'Récap global'!C50","v":"LQBVMT"},{"$f":"'Récap global'!D50","v":"Wjcjsgp"},{"$f":"'Récap global'!#REF!","v":{"$error":"#REF!"}},null,{"$f":"'Récap global'!J218","v":0},{"$f":"'Récap global'!G218+'Récap global'!H218","v":0}]
[{"$f":"'Récap global'!C51","v":"LGAIOF"},{"$f":"'Récap global'!D51","v":"Rfvnacyv"},{"$f":"'Récap global'!#REF!","v":{"$error":"#REF!"}},null,{"$f":"'Récap global'!J3","v":0},{"$f":"'Récap global'!G3+'Récap global'!H3","v":0}]
[{"$f":"'Récap global'!C52","v":"XQTBLJW"},{"$f":"'Récap global'!D52","v":"Icjmviv"},{"$f":"'Récap global'!#REF!","v":{"$error":"#REF!"}},{"$f":"IF(A51=FALSE,0,1)","v":1},{"$f":"IF(D51=1,'Récap global'!J52)","v":0},{"$f":"'Récap global'!G4+'Récap global'!H4","v":0}]
[{"$f":"'Récap global'!C53","v":"ZMMSWPRUSDL"},{"$f":"'Récap global'!D53","v":"Cmvey"},{"$f":"'Récap global'!#REF!","v":{"$error":"#REF!"}},1,{"$f":"IF(D52=1,'Récap global'!J53)","v":0},{"$f":"'Récap global'!G5+'Récap global'!H5","v":1}]
[{"$f":"'Récap global'!C54","v":"EXBF"},{"$f":"'Récap global'!D54","v":"Sacioobe"},{"$f":"'Récap global'!#REF!","v":{"$error":"#REF!"}},1,{"$f":"IF(D53=1,'Récap global'!J54)","v":0},{"$f":"'Récap global'!G6+'Récap global'!H6","v":1}]
[{"$f":"'Récap global'!C55","v":"PZIS"},{"$f":"'Récap global'!D55","v":"Sxggluff"},{"$f":"'Récap global'!#REF!","v":{"$error":"#REF!"}},1,{"$f":"IF(D54=1,'Récap global'!J55)","v":0},{"$f":"'Récap global'!G7+'Récap global'!H7","v":0}]
[{"$f":"'Récap global'!C56","v":"FTOIRKCZ"},{"$f":"'Récap global'!D56","v":"Iszsm"},{"$f":"'Récap global'!#REF!","v":{"$error":"#REF!"}},1,{"$f":"IF(D55=1,'Récap global'!J56)","v":0},{"$f":"'Récap global'!G8+'Récap global'!H8","v":0}]
[{"$f":"'Récap global'!C57","v":"WKDXZAFZ"},{"$f":"'Récap global'!D57","v":"Nrcwkpkj"},{"$f":"'Récap global'!#REF!","v":{"$error":"#REF!"}},1,{"$f":"IF(D56=1,'Récap global'!J57)","v":0},{"$f":"'Récap global'!G11+'Récap global'!H11","v":0}]
[{"$f":"'Récap global'!C58","v":"IWIFFWQ"},{"$f":"'Récap global'!D58","v":"Kck"},{"$f":"'Récap global'!#REF!","v":{"$error":"#REF!"}},1,{"$f":"IF(D57=1,'Récap global'!J58)","v":0},{"$f":"'Récap global'!G12+'Récap global'!H12","v":0}]
[{"$f":"'Récap global'!C59","v":"BOJQKUB"},{"$f":"'Récap global'!D59","v":"Qrfahliiuf"},{"$f":"'Récap global'!#REF!","v":{"$error":"#REF!"}},1,{"$f":"IF(D58=1,'Récap global'!J59)","v":0},{"$f":"'Récap global'!G13+'Récap global'!H13","v":0}]
[{"$f":"'Récap global'!C60","v":"ZOQDH"},{"$f":"'Récap global'!D60","v":"Zakjrhvpr"},{"$f":"'Récap global'!#REF!","v":{"$error":"#REF!"}},1,{"$f":"IF(D59=1,'Récap global'!J60)","v":0},{"$f":"'Récap global'!G14+'Récap global'!H14","v":0}]
[{"$f":"'Récap global'!C61","v":"KYYIY"},{"$f":"'Récap global'!D61","v":"Qoow"},{"$f":"'Récap global'!#REF!","v":{"$error":"#REF!"}},1,{"$f":"IF(D60=1,'Récap global'!J61)","v":0},{"$f":"'Récap global'!G15+'Récap global'!H15","v":0}]
[{"$f":"'Récap global'!C62","v":"HRHMKI"},{"$f":"'Récap global'!D62","v":"Rcjol"},{"$f":"'Récap global'!#REF!","v":{"$error":"#REF!"}},1,{"$f":"IF(D61=1,'Récap global'!J62)","v":0},{"$f":"'Récap global'!G16+'Récap global'!H16","v":0}]
[{"$f":"'Récap global'!C63","v":"BDYNUMBB"},{"$f":"'Récap global'!D63","v":"Sodqx"},{"$f":"'Récap global'!#REF!","v":{"$error":"#REF!"}},1,{"$f":"IF(D62=1,'Récap global'!J63)","v":0},{"$f":"'Récap global'!G17+'Récap global'!H17","v":0}]
[{"$f":"'Récap global'!C64","v":"SPSIFLAKNUJAO"},{"$f":"'Récap global'!D64","v":"Cwlflvch"},{"$f":"'Récap global'!#REF!","v":{"$error":"#REF!"}},1,{"$f":"IF(D63=1,'Récap global'!J64)","v":0},{"$f":"'Récap global'!G18+'Récap global'!H18","v":0}]
[{"$f":"'Récap global'!C65","v":"VUDOQYEFVU"},{"$f":"'Récap global'!D65","v":"Lwyicc"},{"$f":"'Récap global'!#REF!","v":{"$error":"#REF!"}},1,{"$f":"IF(D64=1,'Récap global'!J65)","v":0},{"$f":"'Récap global'!G19+'Récap global'!H19","v":1}]
[{"$f":"'Récap global'!C66","v":"HLAQLVIUMT"},{"$f":"'Récap global'!D66","v":"Krtmkw"},{"$f":"'Récap global'!#REF!","v":{"$error":"#REF!"}},1,{"$f":"IF(D65=1,'Récap global'!J66)","v":0},{"$f":"'Récap global'!G20+'Récap global'!H20","v":1}]
[{"$f":"'Récap global'!C67","v":"EEHLGEO"},{"$f":"'Récap global'!D67","v":"Osaoqtq"},{"$f":"'Récap global'!#REF!","v":{"$error":"#REF!"}},1,{"$f":"IF(D66=1,'Récap global'!J67)","v":0},{"$f":"'Récap global'!G24+'Récap global'!H24","v":1}]
[{"$f":"'Récap global'!C68","v":"TNDQIUJ"},{"$f":"'Récap global'!D68","v":"Hecgdj"},{"$f":"'Récap global'!#REF!","v":{"$error":"#REF!"}},1,{"$f":"IF(D67=1,'Récap global'!J68)","v":0},{"$f":"'Récap global'!G25+'Récap global'!H25","v":1}]
[{"$f":"'Récap global'!C69","v":"JIJKJGD QAZEHTTUN"},{"$f":"'Récap global'!D69","v":"Uxia"},{"$f":"'Récap global'!#REF!","v":{"$error":"#REF!"}},1,{"$f":"IF(D68=1,'Récap global'!J69)","v":0},{"$f":"'Récap global'!G27+'Récap global'!H27","v":0}]
[{"$f":"'Récap global'!C70","v":"FZQCYVM JDBDKQRBZ"},{"$f":"'Récap global'!D70","v":"Yeztpfdtx"},{"$f":"'Récap global'!#REF!","v":{"$error":"#REF!"}},1,{"$f":"IF(D69=1,'Récap global'!J70)","v":0},{"$f":"'Récap global'!G28+'Récap global'!H28","v":1}]
[{"$f":"'Récap global'!C71","v":"LCDFDMH XFRDAETHA"},{"$f":"'Récap global'!D71","v":"Auurgbi"},{"$f":"'Récap global'!#REF!","v":{"$error":"#REF!"}},1,{"$f":"IF(D70=1,'Récap global'!J71)","v":"M/L"},{"$f":"'Récap global'!G29+'Récap global'!H29","v":0}]
[{"$f":"'Récap global'!C72","v":"TBRDJW"},{"$f":"'Récap global'!D72","v":"Cabktpgpq"},{"$f":"'Récap global'!#REF!","v":{"$error":"#REF!"}},1,{"$f":"IF(D71=1,'Récap global'!J72)","v":0},{"$f":"'Récap global'!G30+'Récap global'!H30","v":0}]
[{"$f":"'Récap global'!C73","v":"PILGPB"},{"$f":"'Récap global'!D73","v":"Jffr"},{"$f":"'Récap global'!#REF!","v":{"$error":"#REF!"}},1,{"$f":"IF(D72=1,'Récap global'!J73)","v":0},{"$f":"'Récap global'!G31+'Récap global'!H31","v":1}]
[{"$f":"'Récap global'!C74","v":"XFWLALM"},{"$f":"'Récap global'!D74","v":"Npbhuvz"},{"$f":"'Récap global'!#REF!","v":{"$error":"#REF!"}},1,{"$f":"IF(D73=1,'Récap global'!J74)","v":0},{"$f":"'Récap global'!G32+'Récap global'!H32","v":1}]
[{"$f":"'Récap global'!C75","v":"PTPWEAO"},{"$f":"'Récap global'!D75","v":"Ndvrffsbz"},{"$f":"'Récap global'!#REF!","v":{"$error":"#REF!"}},1,{"$f":"IF(D74=1,'Récap global'!J75)","v":0},{"$f":"'Récap global'!G33+'Récap global'!H33","v":1}]
[{"$f":"'Récap global'!C76","v":"MVYCBLO"},{"$f":"'Récap global'!D76","v":"Wwgtl"},{"$f":"'Récap global'!#REF!","v":{"$error":"#REF!"}},1,{"$f":"IF(D75=1,'Récap global'!J76)","v":0},{"$f":"'Récap global'!G35+'Récap global'!H35","v":1}]
[{"$f":"'Récap global'!C77","v":"EHDRB"},{"$f":"'Récap global'!D77","v":"Mcglrb"},{"$f":"'Récap global'!#REF!","v":{"$error":"#REF!"}},1,{"$f":"IF(D76=1,'Récap global'!J77)","v":0},{"$f":"'Récap global'!G36+'Récap global'!H36","v":0}]
[{"$f":"'Récap global'!C78","v":"NHMNV"},{"$f":"'Récap global'!D78","v":"Labxbo"},{"$f":"'Récap global'!#REF!","v":{"$error":"#REF!"}},1,{"$f":"IF(D77=1,'Récap global'!J78)","v":0},{"$f":"'Récap global'!G37+'Récap global'!H37","v":0}]
[{"$f":"'Récap global'!C79","v":"KFZOF"},{"$f":"'Récap global'!D79","v":"Gvivj"},{"$f":"'Récap global'!#REF!","v":{"$error":"#REF!"}},1,{"$f":"IF(D78=1,'Récap global'!J79)","v":0},{"$f":"'Récap global'!G38+'Récap global'!H38","v":1}]
[{"$f":"'Récap global'!C80","v":"HKYUWJXV US XHULL"},{"$f":"'Récap global'!D80","v":"Jekdhcq"},{"$f":"'Récap global'!#REF!","v":{"$error":"#REF!"}},1,{"$f":"IF(D79=1,'Récap global'!J80)","v":0},{"$f":"'Récap global'!G41+'Récap global'!H41","v":0}]
[{"$f":"'Récap global'!C81","v":"MNQVWJGF"},{"$f":"'Récap global'!D81","v":"Wmsauyb"},{"$f":"'Récap global'!#REF!","v":{"$error":"#REF!"}},1,{"$f":"IF(D80=1,'Récap global'!J81)","v":0},{"$f":"'Récap global'!G42+'Récap global'!H42","v":0}]
[{"$f":"'Récap global'!C82","v":"NTEHWTID"},{"$f":"'Récap global'!D82","v":"Adzmjm"},{"$f":"'Récap global'!#REF!","v":{"$error":"#REF!"}},1,{"$f":"IF(D81=1,'Récap global'!J82)","v":0},{"$f":"'Récap global'!G43+'Récap global'!H43","v":0}]
[{"$f":"'Récap global'!C83","v":"PNDXNHK"},{"$f":"'Récap global'!D83","v":"Udncjt"},{"$f":"'Récap global'!#REF!","v":{"$error":"#REF!"}},1,{"$f":"IF(D82=1,'Récap global'!J83)","v":0},{"$f":"'Récap global'!G44+'Récap global'!H44","v":0}]
[{"$f":"'Récap global'!C84","v":"MBDIIP"},{"$f":"'Récap global'!D84","v":"Swnzhzk"},{"$f":"'Récap global'!#REF!","v":{"$error":"#REF!"}},1,{"$f":"IF(D83=1,'Récap global'!J84)","v":0},{"$f":"'Récap global'!G47+'Récap global'!H47","v":0}]
[{"$f":"'Récap global'!C85","v":"EFMXVM"},{"$f":"'Récap global'!D85","v":"Xirxb"},{"$f":"'Récap global'!#REF!","v":{"$error":"#REF!"}},1,{"$f":"IF(D84=1,'Récap global'!J85)","v":"6ans"},{"$f":"'Récap global'!G48+'Récap global'!H48","v":0}]
[{"$f":"'Récap global'!C86","v":"IUZTEM"},{"$f":"'Récap global'!D86","v":"Tamodoqc"},{"$f":"'Récap global'!#REF!","v":{"$error":"#REF!"}},1,{"$f":"IF(D85=1,'Récap global'!J86)","v":0},{"$f":"'Récap global'!G49+'Récap global'!H49","v":0}]
[{"$f":"'Récap global'!C87","v":"DLCSD"},{"$f":"'Récap global'!D87","v":"Qkmxeou"},{"$f":"'Récap global'!#REF!","v":{"$error":"#REF!"}},1,{"$f":"IF(D86=1,'Récap global'!J87)","v":0},{"$f":"'Récap global'!G50+'Récap global'!H50","v":0}]
[{"$f":"'Récap global'!C88","v":"DSJKP"},{"$f":"'Récap global'!D88","v":"Auzc"},{"$f":"'Récap global'!#REF!","v":{"$error":"#REF!"}},1,{"$f":"IF(D87=1,'Récap global'!J88)","v":0},{"$f":"'Récap global'!G51+'Récap global'!H51","v":0}]
[{"$f":"'Récap global'!C89","v":"IUUWXZZG"},{"$f":"'Récap global'!D89","v":"Nupua"},{"$f":"'Récap global'!#REF!","v":{"$error":"#REF!"}},1,{"$f":"IF(D88=1,'Récap global'!J89)","v":0},{"$f":"'Récap global'!G52+'Récap global'!H52","v":0}]
[{"$f":"'Récap global'!C90","v":"CZZSDDDC"},{"$f":"'Récap global'!D90","v":"Wklvukyyf"},{"$f":"'Récap global'!#REF!","v":{"$error":"#REF!"}},1,{"$f":"IF(D89=1,'Récap global'!J90)","v":0},{"$f":"'Récap global'!G53+'Récap global'!H53","v":0}]
[{"$f":"'Récap global'!C91","v":"GHXETNTJ"},{"$f":"'Récap global'!D91","v":"Ghbbee"},{"$f":"'Récap global'!#REF!","v":{"$error":"#REF!"}},1,{"$f":"IF(D90=1,'Récap global'!J91)","v":0},{"$f":"'Récap global'!G54+'Récap global'!H54","v":0}]
[{"$f":"'Récap global'!C92","v":"WGQVXWA"},{"$f":"'Récap global'!D92","v":"Aruglle"},{"$f":"'Récap global'!#REF!","v":{"$error":"#REF!"}},1,{"$f":"IF(D91=1,'Récap global'!J92)","v":0},{"$f":"'Récap global'!G56+'Récap global'!H56","v":0}]
[{"$f":"'Récap global'!C93","v":"QBGQKVO"},{"$f":"'Récap global'!D93","v":"Tins-Xphk"},{"$f":"'Récap global'!#REF!","v":{"$error":"#REF!"}},1,{"$f":"IF(D92=1,'Récap global'!J93)","v":0},{"$f":"'Récap global'!G57+'Récap global'!H57","v":0}]
[{"$f":"'Récap global'!C94","v":"JOQFDN"},{"$f":"'Récap global'!D94","v":"Tnsvko"},{"$f":"'Récap global'!#REF!","v":{"$error":"#REF!"}},1,{"$f":"IF(D93=1,'Récap global'!J94)","v":0},{"$f":"'Récap global'!G59+'Récap global'!H59","v":0}]
[{"$f":"'Récap global'!C95","v":"H&#958;WJCWTAGR"},{"$f":"'Récap global'!D95","v":"Vocsvfr"},{"$f":"'Récap global'!#REF!","v":{"$error":"#REF!"}},1,{"$f":"IF(D94=1,'Récap global'!J95)","v":0},{"$f":"'Récap global'!G60+'Récap global'!H60","v":0}]
[{"$f":"'Récap global'!C96","v":"VTEGT"},{"$f":"'Récap global'!D96","v":"Qiurg"},{"$f":"'Récap global'!#REF!","v":{"$error":"#REF!"}},1,{"$f":"IF(D95=1,'Récap global'!J96)","v":0},{"$f":"'Récap global'!G61+'Récap global'!H61","v":0}]
[{"$f":"'Récap global'!C97","v":"ETHSW"},{"$f":"'Récap global'!D97","v":"Pwijj"},{"$f":"'Récap global'!#REF!","v":{"$error":"#REF!"}},1,{"$f":"IF(D96=1,'Récap global'!J97)","v":0},{"$f":"'Récap global'!G62+'Récap global'!H62","v":0}]
[{"$f":"'Récap global'!C98","v":"IUESP"},{"$f":"'Récap global'!D98","v":"Zbcgv"},{"$f":"'Récap global'!#REF!","v":{"$error":"#REF!"}},1,{"$f":"IF(D97=1,'Récap global'!J98)","v":0},{"$f":"'Récap global'!G63+'Récap global'!H63","v":0}]
[{"$f":"'Récap global'!C99","v":"SENFY"},{"$f":"'Récap global'!D99","v":"Qjbe"},{"$f":"'Récap global'!#REF!","v":{"$error":"#REF!"}},1,{"$f":"IF(D98=1,'Récap global'!J99)","v":0},{"$f":"'Récap global'!G64+'Récap global'!H64","v":0}]
[{"$f":"'Récap global'!C100","v":"WWWVIHV"},{"$f":"'Récap global'!D100","v":"Zbdtbp"},{"$f":"'Récap global'!#REF!","v":{"$error":"#REF!"}},1,{"$f":"IF(D99=1,'Récap global'!J100)","v":0},{"$f":"'Récap global'!G65+'Récap global'!H65","v":0}]
[{"$f":"'Récap global'!C101","v":"OPFAW"},{"$f":"'Récap global'!D101","v":"Prwgxxp"},{"$f":"'Récap global'!#REF!","v":{"$error":"#REF!"}},1,{"$f":"IF(D100=1,'Récap global'!J101)","v":0},{"$f":"'Récap global'!G66+'Récap global'!H66","v":1}]
[{"$f":"'Récap global'!C102","v":"BTYEF"},{"$f":"'Récap global'!D102","v":"Iedkpsi"},{"$f":"'Récap global'!#REF!","v":{"$error":"#REF!"}},1,{"$f":"IF(D101=1,'Récap global'!J102)","v":0},{"$f":"'Récap global'!G67+'Récap global'!H67","v":0}]
[{"$f":"'Récap global'!C103","v":"HITIT"},{"$f":"'Récap global'!D103","v":"Whcdm"},{"$f":"'Récap global'!#REF!","v":{"$error":"#REF!"}},1,{"$f":"IF(D102=1,'Récap global'!J103)","v":0},{"$f":"'Récap global'!G68+'Récap global'!H68","v":0}]
[{"$f":"'Récap global'!C104","v":"XILFK"},{"$f":"'Récap global'!D104","v":"Uydzmon"},{"$f":"'Récap global'!#REF!","v":{"$error":"#REF!"}},1,{"$f":"IF(D103=1,'Récap global'!J104)","v":0},{"$f":"'Récap global'!G69+'Récap global'!H69","v":0}]
[{"$f":"'Récap global'!C105","v":"PEZMG"},{"$f":"'Récap global'!D105","v":"Aigi"},{"$f":"'Récap global'!#REF!","v":{"$error":"#REF!"}},1,{"$f":"IF(D104=1,'Récap global'!J105)","v":0},{"$f":"'Récap global'!G70+'Récap global'!H70","v":0}]
[{"$f":"'Récap global'!C106","v":"QLMII"},{"$f":"'Récap global'!D106","v":"Okodu"},{"$f":"'Récap global'!#REF!","v":{"$error":"#REF!"}},1,{"$f":"IF(D105=1,'Récap global'!J106)","v":0},{"$f":"'Récap global'!G71+'Récap global'!H71","v":1}]
[{"$f":"'Récap global'!C107","v":"IIPYI"},{"$f":"'Récap global'!D107","v":"Acnwtb"},{"$f":"'Récap global'!#REF!","v":{"$error":"#REF!"}},1,{"$f":"IF(D106=1,'Récap global'!J107)","v":0},{"$f":"'Récap global'!G72+'Récap global'!H72","v":0}]
[{"$f":"'Récap global'!C108","v":"ZJIRK"},{"$f":"'Récap global'!D108","v":"Shjdaiw"},{"$f":"'Récap global'!#REF!","v":{"$error":"#REF!"}},1,{"$f":"IF(D107=1,'Récap global'!J108)","v":0},{"$f":"'Récap global'!G73+'Récap global'!H73","v":0}]
[{"$f":"'Récap global'!C109","v":"ISONK"},{"$f":"'Récap global'!D109","v":"Mycdlbd"},{"$f":"'Récap global'!#REF!","v":{"$error":"#REF!"}},1,{"$f":"IF(D108=1,'Récap global'!J109)","v":0},{"$f":"'Récap global'!G76+'Récap global'!H76","v":0}]
[{"$f":"'Récap global'!C110","v":"HYXMU"},{"$f":"'Récap global'!D110","v":"Wnrz"},{"$f":"'Récap global'!#REF!","v":{"$error":"#REF!"}},1,{"$f":"IF(D109=1,'Récap global'!J110)","v":0},{"$f":"'Récap global'!G77+'Récap global'!H77","v":0}]
[{"$f":"'Récap global'!C111","v":"VEIDF"},{"$f":"'Récap global'!D111","v":"Vwzh"},{"$f":"'Récap global'!#REF!","v":{"$error":"#REF!"}},1,{"$f":"IF(D110=1,'Récap global'!J111)","v":0},{"$f":"'Récap global'!G78+'Récap global'!H78","v":0}]
[{"$f":"'Récap global'!C112","v":"COIDFB"},{"$f":"'Récap global'!D112","v":"Mzjnyl"},{"$f":"'Récap global'!#REF!","v":{"$error":"#REF!"}},1,{"$f":"IF(D111=1,'Récap global'!J112)","v":0},{"$f":"'Récap global'!G79+'Récap global'!H79","v":0}]
[{"$f":"'Récap global'!C113","v":"DNKKDBTQ"},{"$f":"'Récap global'!D113","v":"Lhxykx"},{"$f":"'Récap global'!#REF!","v":{"$error":"#REF!"}},1,{"$f":"IF(D112=1,'Récap global'!J113)","v":0},{"$f":"'Récap global'!G80+'Récap global'!H80","v":0}]
[{"$f":"'Récap global'!C114","v":"NNAYMP XKUWERML"},{"$f":"'Récap global'!D114","v":"Cpfeueh"},{"$f":"'Récap global'!#REF!","v":{"$error":"#REF!"}},1,{"$f":"IF(D113=1,'Récap global'!J114)","v":0},{"$f":"'Récap global'!G81+'Récap global'!H81","v":0}]
[{"$f":"'Récap global'!C115","v":"AUNNJM GPSVIYMJ"},{"$f":"'Récap global'!D115","v":"Uhqxy"},{"$f":"'Récap global'!#REF!","v":{"$error":"#REF!"}},1,{"$f":"IF(D114=1,'Récap global'!J115)","v":0},{"$f":"'Récap global'!G83+'Récap global'!H83","v":0}]
[{"$f":"'Récap global'!C116","v":"QYOJIVN"},{"$f":"'Récap global'!D116","v":"Gjlaizhx"},{"$f":"'Récap global'!#REF!","v":{"$error":"#REF!"}},{"$f":"IF(A115=FALSE,0,1)","v":1},{"$f":"IF(D115=1,'Récap global'!J116)","v":0},{"$f":"'Récap global'!G84+'Récap global'!H84","v":0}]
[{"$f":"'Récap global'!C117","v":"QUJMVFP"},{"$f":"'Récap global'!D117","v":"Jauvw"},{"$f":"'Récap global'!#REF!","v":{"$error":"#REF!"}},1,{"$f":"IF(D116=1,'Récap global'!J117)","v":0},{"$f":"'Récap global'!G85+'Récap global'!H85","v":1}]
[{"$f":"'Récap global'!C118","v":"SVMWYVV"},{"$f":"'Récap global'!D118","v":"Qafti"},{"$f":"'Récap global'!#REF!","v":{"$error":"#REF!"}},1,{"$f":"IF(D117=1,'Récap global'!J118)","v":0},{"$f":"'Récap global'!G86+'Récap global'!H86","v":0}]
[{"$f":"'Récap global'!C119","v":"IICLGXS"},{"$f":"'Récap global'!D119","v":"Iulufqj"},{"$f":"'Récap global'!#REF!","v":{"$error":"#REF!"}},1,{"$f":"IF(D118=1,'Récap global'!J119)","v":0},{"$f":"'Récap global'!G87+'Récap global'!H87","v":0}]
[{"$f":"'Récap global'!C120","v":"RCIP"},{"$f":"'Récap global'!D120","v":"Yfhoi"},{"$f":"'Récap global'!#REF!","v":{"$error":"#REF!"}},1,{"$f":"IF(D119=1,'Récap global'!J120)","v":0},{"$f":"'Récap global'!G88+'Récap global'!H88","v":0}]
[{"$f":"'Récap global'!C121","v":"KDZC"},{"$f":"'Récap global'!D121","v":"Pzklfx"},{"$f":"'Récap global'!#REF!","v":{"$error":"#REF!"}},1,{"$f":"IF(D120=1,'Récap global'!J121)","v":"12ans"},{"$f":"'Récap global'!G89+'Récap global'!H89","v":0}]
[{"$f":"'Récap global'!C122","v":"THTU"},{"$f":"'Récap global'!D122","v":"Yrcv"},{"$f":"'Récap global'!#REF!","v":{"$error":"#REF!"}},1,{"$f":"IF(D121=1,'Récap global'!J122)","v":0},{"$f":"'Récap global'!G90+'Récap global'!H90","v":0}]
[{"$f":"'Récap global'!C123","v":"TXNTVHY"},{"$f":"'Récap global'!D123","v":"Pphazn"},{"$f":"'Récap global'!#REF!","v":{"$error":"#REF!"}},1,{"$f":"IF(D122=1,'Récap global'!J123)","v":0},{"$f":"'Récap global'!G91+'Récap global'!H91","v":0}]
[{"$f":"'Récap global'!C124","v":"BRQNYNB"},{"$f":"'Récap global'!D124","v":"Milpm"},{"$f":"'Récap global'!#REF!","v":{"$error":"#REF!"}},1,{"$f":"IF(D123=1,'Récap global'!J124)","v":0},{"$f":"'Récap global'!G92+'Récap global'!H92","v":0}]
[{"$f":"'Récap global'!C125","v":"WUXBNA QZRZGWZ"},{"$f":"'Récap global'!D125","v":"Rtjkl"},{"$f":"'Récap global'!#REF!","v":{"$error":"#REF!"}},1,{"$f":"IF(D124=1,'Récap global'!J125)","v":0},{"$f":"'Récap global'!G93+'Récap global'!H93","v":0}]
[{"$f":"'Récap global'!C126","v":"OEZIMAA"},{"$f":"'Récap global'!D126","v":"Dukdua"},{"$f":"'Récap global'!#REF!","v":{"$error":"#REF!"}},1,{"$f":"IF(D125=1,'Récap global'!J126)","v":0},{"$f":"'Récap global'!G94+'Récap global'!H94","v":1}]
[{"$f":"'Récap global'!C127","v":"ILUQVNPTY"},{"$f":"'Récap global'!D127","v":"Uookhk"},{"$f":"'Récap global'!#REF!","v":{"$error":"#REF!"}},1,{"$f":"IF(D126=1,'Récap global'!J127)","v":0},{"$f":"'Récap global'!G95+'Récap global'!H95","v":0}]
[{"$f":"'Récap global'!C128","v":"GQQYTA"},{"$f":"'Récap global'!D128","v":"Pymxlgv"},{"$f":"'Récap global'!#REF!","v":{"$error":"#REF!"}},1,{"$f":"IF(D127=1,'Récap global'!J128)","v":0},{"$f":"'Récap global'!G96+'Récap global'!H96","v":0}]
[{"$f":"'Récap global'!C129","v":"OCWHSQ"},{"$f":"'Récap global'!D129","v":"Jjhkvqdm"},{"$f":"'Récap global'!#REF!","v":{"$error":"#REF!"}},1,{"$f":"IF(D128=1,'Récap global'!J129)","v":0},{"$f":"'Récap global'!G97+'Récap global'!H97","v":0}]
[{"$f":"'Récap global'!C130","v":"VHXVJV"},{"$f":"'Récap global'!D130","v":"Fucesi"},{"$f":"'Récap global'!#REF!","v":{"$error":"#REF!"}},1,{"$f":"IF(D129=1,'Récap global'!J130)","v":0},{"$f":"'Récap global'!G98+'Récap global'!H98","v":1}]
[{"$f":"'Récap global'!C131","v":"AXESHF"},{"$f":"'Récap global'!D131","v":"Dmzqp"},{"$f":"'Récap global'!#REF!","v":{"$error":"#REF!"}},1,{"$f":"IF(D130=1,'Récap global'!J131)","v":0},{"$f":"'Récap global'!G101+'Récap global'!H101","v":0}]
[{"$f":"'Récap global'!C132","v":"BXWVAN"},{"$f":"'Récap global'!D132","v":"Eyjy"},{"$f":"'Récap global'!#REF!","v":{"$error":"#REF!"}},1,{"$f":"IF(D131=1,'Récap global'!J132)","v":0},{"$f":"'Récap global'!G102+'Récap global'!H102","v":1}]
[{"$f":"'Récap global'!C133","v":"PWGGI"},{"$f":"'Récap global'!D133","v":"Eicgnjz"},{"$f":"'Récap global'!#REF!","v":{"$error":"#REF!"}},1,{"$f":"IF(D132=1,'Récap global'!J133)","v":0},{"$f":"'Récap global'!G103+'Récap global'!H103","v":1}]
[{"$f":"'Récap global'!C134","v":"XUGHE"},{"$f":"'Récap global'!D134","v":"Gsaagsxx"},{"$f":"'Récap global'!#REF!","v":{"$error":"#REF!"}},1,{"$f":"IF(D133=1,'Récap global'!J134)","v":0},{"$f":"'Récap global'!G104+'Récap global'!H104","v":0}]
[{"$f":"'Récap global'!C135","v":"IMSKH"},{"$f":"'Récap global'!D135","v":"Hprusd"},{"$f":"'Récap global'!#REF!","v":{"$error":"#REF!"}},1,{"$f":"IF(D134=1,'Récap global'!J135)","v":0},{"$f":"'Récap global'!G106+'Récap global'!H106","v":1}]
[{"$f":"'Récap global'!C136","v":"YMHLA"},{"$f":"'Récap global'!D136","v":"Ltnxovfq"},{"$f":"'Récap global'!#REF!","v":{"$error":"#REF!"}},1,{"$f":"IF(D135=1,'Récap global'!J136)","v":0},{"$f":"'Récap global'!G107+'Récap global'!H107","v":1}]
[{"$f":"'Récap global'!C137","v":"NVEI"},{"$f":"'Récap global'!D137","v":"Diazjm"},{"$f":"'Récap global'!#REF!","v":{"$error":"#REF!"}},1,{"$f":"IF(D136=1,'Récap global'!J137)","v":0},{"$f":"'Récap global'!G108+'Récap global'!H108","v":0}]
[{"$f":"'Récap global'!C138","v":"CUGW"},{"$f":"'Récap global'!D138","v":"Hqyh"},{"$f":"'Récap global'!#REF!","v":{"$error":"#REF!"}},1,{"$f":"IF(D137=1,'Récap global'!J138)","v":0},{"$f":"'Récap global'!G109+'Récap global'!H109","v":0}]
[{"$f":"'Récap global'!C139","v":"ILAV"},{"$f":"'Récap global'!D139","v":"Iczmf"},{"$f":"'Récap global'!#REF!","v":{"$error":"#REF!"}},1,{"$f":"IF(D138=1,'Récap global'!J139)","v":0},{"$f":"'Récap global'!G110+'Récap global'!H110","v":1}]
[{"$f":"'Récap global'!C140","v":"XIMZCLGLG"},{"$f":"'Récap global'!D140","v":"Zftoo"},{"$f":"'Récap global'!#REF!","v":{"$error":"#REF!"}},1,{"$f":"IF(D139=1,'Récap global'!J140)","v":0},{"$f":"'Récap global'!G111+'Récap global'!H111","v":1}]
[{"$f":"'Récap global'!C141","v":"AYOUQ"},{"$f":"'Récap global'!D141","v":"Tgiphtlp"},{"$f":"'Récap global'!#REF!","v":{"$error":"#REF!"}},1,{"$f":"IF(D140=1,'Récap global'!J141)","v":0},{"$f":"'Récap global'!G112+'Récap global'!H112","v":0}]
[{"$f":"'Récap global'!C142","v":"IDCZX"},{"$f":"'Récap global'!D142","v":"Awkn-Iwvxcw"},{"$f":"'Récap global'!#REF!","v":{"$error":"#REF!"}},1,{"$f":"IF(D141=1,'Récap global'!J142)","v":0},{"$f":"'Récap global'!G113+'Récap global'!H113","v":0}]
[{"$f":"'Récap global'!C143","v":"GDUXU"},{"$f":"'Récap global'!D143","v":"Gmf"},{"$f":"'Récap global'!#REF!","v":{"$error":"#REF!"}},1,{"$f":"IF(D142=1,'Récap global'!J143)","v":0},{"$f":"'Récap global'!G114+'Récap global'!H114","v":1}]
[{"$f":"'Récap global'!C144","v":"POZAO"},{"$f":"'Récap global'!D144","v":"Xhbxv"},{"$f":"'Récap global'!#REF!","v":{"$error":"#REF!"}},null,{"$f":"'Récap global'!J115","v":0},{"$f":"'Récap global'!G115+'Récap global'!H115","v":1}]
[{"$f":"'Récap global'!C145","v":"POOMW"},{"$f":"'Récap global'!D145","v":"Fzxrd"},{"$f":"'Récap global'!#REF!","v":{"$error":"#REF!"}},null,{"$f":"'Récap global'!J116","v":0},{"$f":"'Récap global'!G116+'Récap global'!H116","v":0}]
[{"$f":"'Récap global'!C146","v":"MTGBM"},{"$f":"'Récap global'!D146","v":"Cldpya"},{"$f":"'Récap global'!#REF!","v":{"$error":"#REF!"}},{"$f":"IF(A145=FALSE,0,1)","v":1},{"$f":"IF(D145=1,'Récap global'!J146)","v":0},{"$f":"'Récap global'!G120+'Récap global'!H120","v":0}]
[{"$f":"'Récap global'!C147","v":"WR UMIGA"},{"$f":"'Récap global'!D147","v":"Nmceae"},{"$f":"'Récap global'!#REF!","v":{"$error":"#REF!"}},1,{"$f":"IF(D146=1,'Récap global'!J147)","v":0},{"$f":"'Récap global'!G121+'Récap global'!H121","v":1}]
[{"$f":"'Récap global'!C148","v":"DXKMR OP EXMUK"},{"$f":"'Récap global'!D148","v":"Jwnagdfb"},{"$f":"'Récap global'!#REF!","v":{"$error":"#REF!"}},1,{"$f":"IF(D147=1,'Récap global'!J148)","v":0},{"$f":"'Récap global'!G122+'Récap global'!H122","v":0}]
[{"$f":"'Récap global'!C149","v":"TP MSTIY"},{"$f":"'Récap global'!D149","v":"Sohagw"},{"$f":"'Récap global'!#REF!","v":{"$error":"#REF!"}},1,{"$f":"IF(D148=1,'Récap global'!J149)","v":0},{"$f":"'Récap global'!G123+'Récap global'!H123","v":0}]
[{"$f":"'Récap global'!C150","v":"ESBYEBN"},{"$f":"'Récap global'!D150","v":"Qzmfe"},{"$f":"'Récap global'!#REF!","v":{"$error":"#REF!"}},1,{"$f":"IF(D149=1,'Récap global'!J150)","v":0},{"$f":"'Récap global'!G124+'Récap global'!H124","v":0}]
[{"$f":"'Récap global'!C151","v":"JVAOTIK"},{"$f":"'Récap global'!D151","v":"Iexqf"},{"$f":"'Récap global'!#REF!","v":{"$error":"#REF!"}},1,{"$f":"IF(D150=1,'Récap global'!J151)","v":0},{"$f":"'Récap global'!G126+'Récap global'!H126","v":0}]
[{"$f":"'Récap global'!C152","v":"XL OSPFS"},{"$f":"'Récap global'!D152","v":"Pqsf"},{"$f":"'Récap global'!#REF!","v":{"$error":"#REF!"}},1,{"$f":"IF(D151=1,'Récap global'!J152)","v":0},{"$f":"'Récap global'!G127+'Récap global'!H127","v":0}]
[{"$f":"'Récap global'!C153","v":"RFMMJR"},{"$f":"'Récap global'!D153","v":"Dpdktjkm"},{"$f":"'Récap global'!#REF!","v":{"$error":"#REF!"}},1,{"$f":"IF(D152=1,'Récap global'!J153)","v":0},{"$f":"'Récap global'!G128+'Récap global'!H128","v":0}]
[{"$f":"'Récap global'!C154","v":"HMVEMF"},{"$f":"'Récap global'!D154","v":"Xcunjsq"},{"$f":"'Récap global'!#REF!","v":{"$error":"#REF!"}},1,{"$f":"IF(D153=1,'Récap global'!J154)","v":"8 ans"},{"$f":"'Récap global'!G130+'Récap global'!H130","v":1}]
[{"$f":"'Récap global'!C155","v":"ALXLOP"},{"$f":"'Récap global'!D155","v":"Djrqjo"},{"$f":"'Récap global'!#REF!","v":{"$error":"#REF!"}},1,{"$f":"IF(D154=1,'Récap global'!J155)","v":"S"},{"$f":"'Récap global'!G131+'Récap global'!H131","v":1}]
[{"$f":"'Récap global'!C156","v":"YCNQBC"},{"$f":"'Récap global'!D156","v":"Qtmrfy"},{"$f":"'Récap global'!#REF!","v":{"$error":"#REF!"}},1,{"$f":"IF(D155=1,'Récap global'!J156)","v":0},{"$f":"'Récap global'!G137+'Récap global'!H137","v":0}]
[{"$f":"'Récap global'!C157","v":"LV ZPYZ LUZNKJ"},{"$f":"'Récap global'!D157","v":"Obxhr"},{"$f":"'Récap global'!#REF!","v":{"$error":"#REF!"}},1,{"$f":"IF(D156=1,'Récap global'!J157)","v":0},{"$f":"'Récap global'!G138+'Récap global'!H138","v":0}]
[{"$f":"'Récap global'!C158","v":"ZW WTRI EOKSDO"},{"$f":"'Récap global'!D158","v":"Snbuia"},{"$f":"'Récap global'!#REF!","v":{"$error":"#REF!"}},1,{"$f":"IF(D157=1,'Récap global'!J158)","v":0},{"$f":"'Récap global'!G139+'Récap global'!H139","v":0}]
[{"$f":"'Récap global'!C159","v":"UV WTZS PYYHQF"},{"$f":"'Récap global'!D159","v":"Kbtfvi"},{"$f":"'Récap global'!#REF!","v":{"$error":"#REF!"}},1,{"$f":"IF(D158=1,'Récap global'!J159)","v":0},{"$f":"'Récap global'!G140+'Récap global'!H140","v":0}]
[{"$f":"'Récap global'!C160","v":"TI IOBA WMEKSZ"},{"$f":"'Récap global'!D160","v":"Bznqmz"},{"$f":"'Récap global'!#REF!","v":{"$error":"#REF!"}},1,{"$f":"IF(D159=1,'Récap global'!J160)","v":0},{"$f":"'Récap global'!G141+'Récap global'!H141","v":0}]
[{"$f":"'Récap global'!C161","v":"SR SKJX DMOZQV"},{"$f":"'Récap global'!D161","v":"Lzdwd"},{"$f":"'Récap global'!#REF!","v":{"$error":"#REF!"}},1,{"$f":"IF(D160=1,'Récap global'!J161)","v":0},{"$f":"'Récap global'!G142+'Récap global'!H142","v":0}]
[{"$f":"'Récap global'!C162","v":"NDIFLEL"},{"$f":"'Récap global'!D162","v":"Cbhpzpd"},{"$f":"'Récap global'!#REF!","v":{"$error":"#REF!"}},1,{"$f":"IF(D161=1,'Récap global'!J162)","v":0},{"$f":"'Récap global'!G143+'Récap global'!H143","v":0}]
[{"$f":"'Récap global'!C163","v":"WLMBQ"},{"$f":"'Récap global'!D163","v":"Wdpwm"},{"$f":"'Récap global'!#REF!","v":{"$error":"#REF!"}},1,{"$f":"IF(D162=1,'Récap global'!J163)","v":0},{"$f":"'Récap global'!G144+'Récap global'!H144","v":0}]
[{"$f":"'Récap global'!C164","v":"FYMREWL"},{"$f":"'Récap global'!D164","v":"Anvvij"},{"$f":"'Récap global'!#REF!","v":{"$error":"#REF!"}},1,{"$f":"IF(D163=1,'Récap global'!J164)","v":0},{"$f":"'Récap global'!G145+'Récap global'!H145","v":0}]
[{"$f":"'Récap global'!C165","v":"TOIODJN"},{"$f":"'Récap global'!D165","v":"Uzjlj"},{"$f":"'Récap global'!#REF!","v":{"$error":"#REF!"}},1,{"$f":"IF(D164=1,'Récap global'!J165)","v":0},{"$f":"'Récap global'!G146+'Récap global'!H146","v":0}]
[{"$f":"'Récap global'!C166","v":"OOINNEZ"},{"$f":"'Récap global'!D166","v":"Hsvhw"},{"$f":"'Récap global'!#REF!","v":{"$error":"#REF!"}},1,{"$f":"IF(D165=1,'Récap global'!J166)","v":0},{"$f":"'Récap global'!G149+'Récap global'!H149","v":1}]
[{"$f":"'Récap global'!C167","v":"MCNVDSG"},{"$f":"'Récap global'!D167","v":"Hsei-Pfuzz"},{"$f":"'Récap global'!#REF!","v":{"$error":"#REF!"}},1,{"$f":"IF(D166=1,'Récap global'!J167)","v":0},{"$f":"'Récap global'!G150+'Récap global'!H150","v":1}]
[{"$f":"'Récap global'!C168","v":"EIJWP"},{"$f":"'Récap global'!D168","v":"Gbyoc"},{"$f":"'Récap global'!#REF!","v":{"$error":"#REF!"}},1,{"$f":"IF(D167=1,'Récap global'!J168)","v":0},{"$f":"'Récap global'!G151+'Récap global'!H151","v":1}]
[{"$f":"'Récap global'!C169","v":"JSSCB BOGYRRP"},{"$f":"'Récap global'!D169","v":"Dwbcqq"},{"$f":"'Récap global'!#REF!","v":{"$error":"#REF!"}},1,{"$f":"IF(D168=1,'Récap global'!J169)","v":0},{"$f":"'Récap global'!G152+'Récap global'!H152","v":1}]
[{"$f":"'Récap global'!C170","v":"BXDOEDT"},{"$f":"'Récap global'!D170","v":"Vbdodevov"},{"$f":"'Récap global'!#REF!","v":{"$error":"#REF!"}},1,{"$f":"IF(D169=1,'Récap global'!J170)","v":0},{"$f":"'Récap global'!G153+'Récap global'!H153","v":0}]
[{"$f":"'Récap global'!C171","v":"BBWTW"},{"$f":"'Récap global'!D171","v":"Vvysddpkr"},{"$f":"'Récap global'!#REF!","v":{"$error":"#REF!"}},1,{"$f":"IF(D170=1,'Récap global'!J171)","v":0},{"$f":"'Récap global'!G154+'Récap global'!H154","v":1}]
[{"$f":"'Récap global'!C172","v":"UQGCSTA"},{"$f":"'Récap global'!D172","v":"Nnkrzy"},{"$f":"'Récap global'!#REF!","v":{"$error":"#REF!"}},1,{"$f":"IF(D171=1,'Récap global'!J172)","v":0},{"$f":"'Récap global'!G158+'Récap global'!H158","v":0}]
[{"$f":"'Récap global'!C173","v":"TBLOLOI"},{"$f":"'Récap global'!D173","v":"Ssmibk"},{"$f":"'Récap global'!#REF!","v":{"$error":"#REF!"}},1,{"$f":"IF(D172=1,'Récap global'!J173)","v":0},{"$f":"'Récap global'!G159+'Récap global'!H159","v":1}]
[{"$f":"'Récap global'!C174","v":"UHXSRW"},{"$f":"'Récap global'!D174","v":"Kjze"},{"$f":"'Récap global'!#REF!","v":{"$error":"#REF!"}},1,{"$f":"IF(D173=1,'Récap global'!J174)","v":0},{"$f":"'Récap global'!G160+'Récap global'!H160","v":1}]
[{"$f":"'Récap global'!C175","v":"UMNSFL"},{"$f":"'Récap global'!D175","v":"Obikycnb-Rthewl"},{"$f":"'Récap global'!#REF!","v":{"$error":"#REF!"}},1,{"$f":"IF(D174=1,'Récap global'!J175)","v":0},{"$f":"'Récap global'!G161+'Récap global'!H161","v":0}]
[{"$f":"'Récap global'!C176","v":"ARIWIL"},{"$f":"'Récap global'!D176","v":"Vqmbscfw"},{"$f":"'Récap global'!#REF!","v":{"$error":"#REF!"}},1,{"$f":"IF(D175=1,'Récap global'!J176)","v":"M"},{"$f":"'Récap global'!G162+'Récap global'!H162","v":0}]
[{"$f":"'Récap global'!C177","v":"OGBNETI"},{"$f":"'Récap global'!D177","v":"Fougrb"},{"$f":"'Récap global'!#REF!","v":{"$error":"#REF!"}},1,{"$f":"IF(D176=1,'Récap global'!J177)","v":0},{"$f":"'Récap global'!G163+'Récap global'!H163","v":0}]
[{"$f":"'Récap global'!C178","v":"WTVOAAKCV"},{"$f":"'Récap global'!D178","v":"Ssccx"},{"$f":"'Récap global'!#REF!","v":{"$error":"#REF!"}},1,{"$f":"IF(D177=1,'Récap global'!J178)","v":0},{"$f":"'Récap global'!G164+'Récap global'!H164","v":0}]
[{"$f":"'Récap global'!C179","v":"KBSVFGWCC"},{"$f":"'Récap global'!D179","v":"Jmhdvu"},{"$f":"'Récap global'!#REF!","v":{"$error":"#REF!"}},1,{"$f":"IF(D178=1,'Récap global'!J179)","v":0},{"$f":"'Récap global'!G165+'Récap global'!H165","v":0}]
[{"$f":"'Récap global'!C180","v":"YICRIFVVH"},{"$f":"'Récap global'!D180","v":"Looac"},{"$f":"'Récap global'!#REF!","v":{"$error":"#REF!"}},1,{"$f":"IF(D179=1,'Récap global'!J180)","v":"12 ans"},{"$f":"'Récap global'!G166+'Récap global'!H166","v":1}]
[{"$f":"'Récap global'!C181","v":"TUPRODPVQP UL FLXDNN"},{"$f":"'Récap global'!D181","v":"Nxggvz-Jdinn"},{"$f":"'Récap global'!#REF!","v":{"$error":"#REF!"}},1,{"$f":"IF(D180=1,'Récap global'!J181)","v":0},{"$f":"'Récap global'!G167+'Récap global'!H167","v":0}]
[{"$f":"'Récap global'!C182","v":"KWWLXSCOJE HV PSPZRU"},{"$f":"'Récap global'!D182","v":"Edxmg"},{"$f":"'Récap global'!#REF!","v":{"$error":"#REF!"}},1,{"$f":"IF(D181=1,'Récap global'!J182)","v":0},{"$f":"'Récap global'!G169+'Récap global'!H169","v":0}]
[{"$f":"'Récap global'!C183","v":"TJVCLEQQCI QK SUYDRJ"},{"$f":"'Récap global'!D183","v":"Glek"},{"$f":"'Récap global'!#REF!","v":{"$error":"#REF!"}},1,{"$f":"IF(D182=1,'Récap global'!J183)","v":0},{"$f":"'Récap global'!G170+'Récap global'!H170","v":0}]
[{"$f":"'Récap global'!C184","v":"WBIYXWQ"},{"$f":"'Récap global'!D184","v":"Wto"},{"$f":"'Récap global'!#REF!","v":{"$error":"#REF!"}},1,{"$f":"IF(D183=1,'Récap global'!J184)","v":"L"},{"$f":"'Récap global'!G171+'Récap global'!H171","v":0}]
[{"$f":"'Récap global'!C185","v":"AJYZDQM"},{"$f":"'Récap global'!D185","v":"Lfmwbu"},{"$f":"'Récap global'!#REF!","v":{"$error":"#REF!"}},1,{"$f":"IF(D184=1,'Récap global'!J185)","v":"XL"},{"$f":"'Récap global'!G173+'Récap global'!H173","v":0}]
[{"$f":"'Récap global'!C186","v":"TPNEIISOKPX"},{"$f":"'Récap global'!D186","v":"Wir"},{"$f":"'Récap global'!#REF!","v":{"$error":"#REF!"}},1,{"$f":"IF(D185=1,'Récap global'!J186)","v":"M"},{"$f":"'Récap global'!G174+'Récap global'!H174","v":0}]
[{"$f":"'Récap global'!C187","v":"KYIMIOFA"},{"$f":"'Récap global'!D187","v":"Tncnym"},{"$f":"'Récap global'!#REF!","v":{"$error":"#REF!"}},1,{"$f":"IF(D186=1,'Récap global'!J187)","v":"XL"},{"$f":"'Récap global'!G175+'Récap global'!H175","v":0}]
[{"$f":"'Récap global'!C188","v":"BDWQHN"},{"$f":"'Récap global'!D188","v":"Pblqgv"},{"$f":"'Récap global'!#REF!","v":{"$error":"#REF!"}},1,{"$f":"IF(D187=1,'Récap global'!J188)","v":"L"},{"$f":"'Récap global'!G177+'Récap global'!H177","v":1}]
[{"$f":"'Récap global'!C189","v":"CZFJQL"},{"$f":"'Récap global'!D189","v":"Jkfveurn"},{"$f":"'Récap global'!#REF!","v":{"$error":"#REF!"}},1,{"$f":"IF(D188=1,'Récap global'!J189)","v":"L"},{"$f":"'Récap global'!G179+'Récap global'!H179","v":0}]
[{"$f":"'Récap global'!C190","v":"CVOQHNS"},{"$f":"'Récap global'!D190","v":"Dgrbxrncm"},{"$f":"'Récap global'!#REF!","v":{"$error":"#REF!"}},1,{"$f":"IF(D189=1,'Récap global'!J190)","v":"M"},{"$f":"'Récap global'!G180+'Récap global'!H180","v":1}]
[{"$f":"'Récap global'!C191","v":"LDXKKOR"},{"$f":"'Récap global'!D191","v":"Eaxjq"},{"$f":"'Récap global'!#REF!","v":{"$error":"#REF!"}},1,{"$f":"IF(D190=1,'Récap global'!J191)","v":"S"},{"$f":"'Récap global'!G181+'Récap global'!H181","v":0}]
[{"$f":"'Récap global'!C192","v":"FFBDSFE"},{"$f":"'Récap global'!D192","v":"Pcega"},{"$f":"'Récap global'!#REF!","v":{"$error":"#REF!"}},1,{"$f":"IF(D191=1,'Récap global'!J192)","v":"S"},{"$f":"'Récap global'!G182+'Récap global'!H182","v":1}]
[{"$f":"'Récap global'!C193","v":"GIKTAHFU"},{"$f":"'Récap global'!D193","v":"Lhlok"},{"$f":"'Récap global'!#REF!","v":{"$error":"#REF!"}},1,{"$f":"IF(D192=1,'Récap global'!J193)","v":"S"},{"$f":"'Récap global'!G183+'Récap global'!H183","v":0}]
[{"$f":"'Récap global'!C194","v":"NLTEVIA"},{"$f":"'Récap global'!D194","v":"Nnlkiew"},{"$f":"'Récap global'!#REF!","v":{"$error":"#REF!"}},1,{"$f":"IF(D193=1,'Récap global'!J194)","v":"XL"},{"$f":"'Récap global'!G184+'Récap global'!H184","v":0}]
[{"$f":"'Récap global'!C195","v":"ANCPSCLJ-OADSL"},{"$f":"'Récap global'!D195","v":"Bmrutdwk"},{"$f":"'Récap global'!#REF!","v":{"$error":"#REF!"}},1,{"$f":"IF(D194=1,'Récap global'!J195)","v":"XL"},{"$f":"'Récap global'!G185+'Récap global'!H185","v":0}]
[{"$f":"'Récap global'!C196","v":"PCONR"},{"$f":"'Récap global'!D196","v":"Wvzwu-Qthzjq"},{"$f":"'Récap global'!#REF!","v":{"$error":"#REF!"}},1,{"$f":"IF(D195=1,'Récap global'!J196)","v":"M"},{"$f":"'Récap global'!G186+'Récap global'!H186","v":0}]
[{"$f":"'Récap global'!C197","v":"PBGERN"},{"$f":"'Récap global'!D197","v":"Swsvcxtkit"},{"$f":"'Récap global'!#REF!","v":{"$error":"#REF!"}},1,{"$f":"IF(D196=1,'Récap global'!J197)","v":"2XL"},{"$f":"'Récap global'!G188+'Récap global'!H188","v":0}]
[{"$f":"'Récap global'!C198","v":"AWYB"},{"$f":"'Récap global'!D198","v":"Shon"},{"$f":"'Récap global'!#REF!","v":{"$error":"#REF!"}},1,{"$f":"IF(D197=1,'Récap global'!J198)","v":"M"},{"$f":"'Récap global'!G189+'Récap global'!H189","v":0}]
[{"$f":"'Récap global'!C199","v":"RJ PHFNE"},{"$f":"'Récap global'!D199","v":"Bbxyhjwtny"},{"$f":"'Récap global'!#REF!","v":{"$error":"#REF!"}},1,{"$f":"IF(D198=1,'Récap global'!J199)","v":"M"},{"$f":"'Récap global'!G193+'Récap global'!H193","v":0}]
[{"$f":"'Récap global'!C200","v":"PPVGA"},{"$f":"'Récap global'!D200","v":"Wfunz"},{"$f":"'Récap global'!#REF!","v":{"$error":"#REF!"}},1,{"$f":"IF(D199=1,'Récap global'!J200)","v":"M"},{"$f":"'Récap global'!G194+'Récap global'!H194","v":0}]
[{"$f":"'Récap global'!C201","v":"BIOQ"},{"$f":"'Récap global'!D201","v":"Swxvk"},{"$f":"'Récap global'!#REF!","v":{"$error":"#REF!"}},1,{"$f":"IF(D200=1,'Récap global'!J201)","v":"S"},{"$f":"'Récap global'!G195+'Récap global'!H195","v":0}]
[{"$f":"'Récap global'!C202","v":"TXLML"},{"$f":"'Récap global'!D202","v":"Hwsjyxvo"},{"$f":"'Récap global'!#REF!","v":{"$error":"#REF!"}},1,{"$f":"IF(D201=1,'Récap global'!J202)","v":"M"},{"$f":"'Récap global'!G196+'Récap global'!H196","v":0}]
[{"$f":"'Récap global'!C203","v":"NDRQOOEPM"},{"$f":"'Récap global'!D203","v":"Bealemmt"},{"$f":"'Récap global'!#REF!","v":{"$error":"#REF!"}},1,{"$f":"IF(D202=1,'Récap global'!J203)","v":"XL"},{"$f":"'Récap global'!G197+'Récap global'!H197","v":0}]
[{"$f":"'Récap global'!C204","v":"UCMRG"},{"$f":"'Récap global'!D204","v":"Nylvgyvz"},{"$f":"'Récap global'!#REF!","v":{"$error":"#REF!"}},1,{"$f":"IF(D203=1,'Récap global'!J204)","v":"M"},{"$f":"'Récap global'!G198+'Récap global'!H198","v":0}]
[{"$f":"'Récap global'!C205","v":"ZBCOUN"},{"$f":"'Récap global'!D205","v":"Twajqiqc"},{"$f":"'Récap global'!#REF!","v":{"$error":"#REF!"}},1,{"$f":"IF(D204=1,'Récap global'!J205)","v":"S"},{"$f":"'Récap global'!G199+'Récap global'!H199","v":0}]
[{"$f":"'Récap global'!C206","v":"RTRZVB"},{"$f":"'Récap global'!D206","v":"Suhfxd"},{"$f":"'Récap global'!#REF!","v":{"$error":"#REF!"}},1,{"$f":"IF(D205=1,'Récap global'!J206)","v":"S"},{"$f":"'Récap global'!G200+'Récap global'!H200","v":0}]
[{"$f":"'Récap global'!C207","v":"GNEBWULFJDRLOVXC"},{"$f":"'Récap global'!D207","v":"Yjatvdt"},{"$f":"'Récap global'!#REF!","v":{"$error":"#REF!"}},1,{"$f":"IF(D206=1,'Récap global'!J207)","v":"L"},{"$f":"'Récap global'!G201+'Récap global'!H201","v":0}]
[{"$f":"'Récap global'!C208","v":"XEXFOWJS"},{"$f":"'Récap global'!D208","v":"Xpymueyz"},{"$f":"'Récap global'!#REF!","v":{"$error":"#REF!"}},1,{"$f":"IF(D207=1,'Récap global'!J208)","v":"M"},{"$f":"'Récap global'!G202+'Récap global'!H202","v":0}]
[{"$f":"'Récap global'!C209","v":"WHIURX"},{"$f":"'Récap global'!D209","v":"Vjplztl"},{"$f":"'Récap global'!#REF!","v":{"$error":"#REF!"}},1,{"$f":"IF(D208=1,'Récap global'!J209)","v":"XL"},{"$f":"'Récap global'!G203+'Récap global'!H203","v":0}]
[{"$f":"'Récap global'!C210","v":"PIEDZWIUL"},{"$f":"'Récap global'!D210","v":"Dnvs-Gpevvq"},{"$f":"'Récap global'!#REF!","v":{"$error":"#REF!"}},{"$f":"IF(A209=FALSE,0,1)","v":1},{"$f":"IF(D209=1,'Récap global'!J210)","v":"L (logistique)"},{"$f":"'Récap global'!G204+'Récap global'!H204","v":0}]
[{"$f":"'Récap global'!C211","v":"EONOFNAAD"},{"$f":"'Récap global'!D211","v":"Fpckrbpy"},{"$f":"'Récap global'!#REF!","v":{"$error":"#REF!"}},1,{"$f":"IF(D210=1,'Récap global'!J211)","v":"L (logistique)"},{"$f":"'Récap global'!G207+'Récap global'!H207","v":0}]
[{"$f":"'Récap global'!C212","v":"QQTOOKW"},{"$f":"'Récap global'!D212","v":"Pgayrcg"},{"$f":"'Récap global'!#REF!","v":{"$error":"#REF!"}},1,{"$f":"IF(D211=1,'Récap global'!J212)","v":"M"},{"$f":"'Récap global'!G208+'Récap global'!H208","v":0}]
[{"$f":"'Récap global'!C213","v":"OEHQLCRGZ"},{"$f":"'Récap global'!D213","v":"Gppynz"},{"$f":"'Récap global'!#REF!","v":{"$error":"#REF!"}},1,{"$f":"IF(D212=1,'Récap global'!J213)","v":0},{"$f":"'Récap global'!G209+'Récap global'!H209","v":0}]
[{"$f":"'Récap global'!C214","v":"QHJIZMN"},{"$f":"'Récap global'!D214","v":"Uspzmym"},{"$f":"'Récap global'!#REF!","v":{"$error":"#REF!"}},1,{"$f":"IF(D213=1,'Récap global'!J214)","v":0},{"$f":"'Récap global'!G213+'Récap global'!H213","v":0}]
[{"$f":"'Récap global'!C215","v":"WIKYINTXQ"},{"$f":"'Récap global'!D215","v":"Stne Islldv"},{"$f":"'Récap global'!#REF!","v":{"$error":"#REF!"}},1,{"$f":"IF(D214=1,'Récap global'!J215)","v":0},{"$f":"'Récap global'!G214+'Récap global'!H214","v":0}]
[{"$f":"'Récap global'!C216","v":"FYUKIVP"},{"$f":"'Récap global'!D216","v":"Dmgam"},{"$f":"'Récap global'!#REF!","v":{"$error":"#REF!"}},1,{"$f":"IF(D215=1,'Récap global'!J216)","v":"XL"},{"$f":"'Récap global'!G215+'Récap global'!H215","v":0}]
[{"$f":"'Récap global'!C217","v":"YMULROU"},{"$f":"'Récap global'!D217","v":"Inwkymm"},{"$f":"'Récap global'!#REF!","v":{"$error":"#REF!"}},1,{"$f":"IF(D216=1,'Récap global'!J217)","v":0},{"$f":"'Récap global'!G216+'Récap global'!H216","v":0}]
[{"$f":"'Récap global'!C218","v":"BXWKWR"},{"$f":"'Récap global'!D218","v":"Okiyy"},{"$f":"'Récap global'!#REF!","v":{"$error":"#REF!"}},1,{"$f":"IF(D217=1,'Récap global'!J218)","v":0},{"$f":"'Récap global'!G217+'Récap global'!H217","v":0}]
[{"$f":"'Récap global'!C219","v":"EZOQYSTZX"},{"$f":"'Récap global'!D219","v":"Nluc"},{"$f":"'Récap global'!#REF!","v":{"$error":"#REF!"}},1,{"$f":"IF(D218=1,'Récap global'!J219)","v":"L"},{"$f":"'Récap global'!G218+'Récap global'!H218","v":0}]
[{"$f":"'Récap global'!C220","v":0},{"$f":"'Récap global'!D220","v":0},{"$f":"'Récap global'!#REF!","v":{"$error":"#REF!"}},1,{"$f":"IF(D219=1,'Récap global'!J220)","v":0},{"$f":"'Récap global'!G219+'Récap global'!H219","v":0}]
[{"$f":"'Récap global'!C221","v":0},{"$f":"'Récap global'!D221","v":0},{"$f":"'Récap global'!#REF!","v":{"$error":"#REF!"}}]
[{"$f":"'Récap global'!C222","v":0},{"$f":"'Récap global'!D222","v":0}]
[{"$f":"'Récap global'!C223","v":0},{"$f":"'Récap global'!D223","v":0}]
[{"$f":"'Récap global'!C224","v":0},{"$f":"'Récap global'!D224","v":0}]
[{"$f":"'Récap global'!C225","v":0},{"$f":"'Récap global'!D225","v":0}]
[{"$f":"'Récap global'!C226","v":0},{"$f":"'Récap global'!D226","v":0}]
[{"$f":"'Récap global'!C227","v":0},{"$f":"'Récap global'!D227","v":0}]
[{"$f":"'Récap global'!C228","v":0},{"$f":"'Récap global'!D228","v":0}]
[{"$f":"'Récap global'!C229","v":0},{"$f":"'Récap global'!D229","v":0}]

{"sheet":"Régimes","index":3,"n_rows":113,"n_cols":11,"rows_kept":113,"cut":false,"hidden":true,"merged":[[1,0,1,2],[1,4,1,6],[1,8,1,10],[3,0,21,0],[3,4,21,4],[3,8,21,8],[77,4,94,4],[95,4,112,4],[22,0,39,0],[22,4,40,4],[22,8,40,8],[40,0,57,0],[41,4,58,4],[41,8,58,8],[58,0,75,0],[59,4,76,4]]}
[]
["Vendredi",null,null,null,"Samedi",null,null,null,"Dimanche"]
["Vendredi","Menu","Nb de repas",null,"Heure","Menu","Nb de repas",null,"Heure","Menu","Nb de repas"]
["VENDREDI DEJEUNER","Ordinaire",{"$error":"#REF!"},null,"SAMEDI PDJ","Ordinaire",{"$error":"#REF!"},null,"DIMANCHE PDJ","Ordinaire",{"$error":"#REF!"}]
[null,"Mixé Lisse",{"$error":"#REF!"},null,null,"Mixé Lisse",{"$error":"#REF!"},null,null,"Mixé Lisse",{"$error":"#REF!"}]
[null,"Mixé sans viande",{"$error":"#REF!"},null,null,"Mixé sans viande",{"$error":"#REF!"},null,null,"Mixé sans viande",{"$error":"#REF!"}]
[null,"Sans viande",{"$error":"#REF!"},null,null,"Sans viande",{"$error":"#REF!"},null,null,"Sans viande",{"$error":"#REF!"}]
[null,"Fibre",{"$error":"#REF!"},null,null,"Fibre",{"$error":"#REF!"},null,null,"Fibre",{"$error":"#REF!"}]
[null,"Gastrostomie - Sonde",{"$error":"#REF!"},null,null,"Gastrostomie - Sonde",{"$error":"#REF!"},null,null,"Gastrostomie - Sonde",{"$error":"#REF!"}]
[null,"Mixé grossièrement",{"$error":"#REF!"},null,null,"Mixé grossièrement",{"$error":"#REF!"},null,null,"Mixé grossièrement",{"$error":"#REF!"}]
[null,"Sans fromages",{"$error":"#REF!"},null,null,"Sans fromages",{"$error":"#REF!"},null,null,"Sans fromages",{"$error":"#REF!"}]
[null,"Végétarien",{"$error":"#REF!"},null,null,"Végétarien",{"$error":"#REF!"},null,null,"Végétarien",{"$error":"#REF!"}]
[null,"Sans résidus",{"$error":"#REF!"},null,null,"Sans résidus",{"$error":"#REF!"},null,null,"Sans résidus",{"$error":"#REF!"}]
[null,"Mixé sans résidus",{"$error":"#REF!"},null,null,"Mixé sans résidus",{"$error":"#REF!"},null,null,"Mixé sans résidus",{"$error":"#REF!"}]
[null,"Mixé Lisse sans porc",{"$error":"#REF!"},null,null,"Mixé Lisse sans porc",{"$error":"#REF!"},null,null,"Mixé Lisse sans porc",{"$error":"#REF!"}]
[null,"Mixé sans viande sans porc",{"$error":"#REF!"},null,null,"Mixé sans viande sans porc",{"$error":"#REF!"},null,null,"Mixé sans viande sans porc",{"$error":"#REF!"}]
[null,"Fibre sans porc",{"$error":"#REF!"},null,null,"Fibre sans porc",{"$error":"#REF!"},null,null,"Fibre sans porc",{"$error":"#REF!"}]
[null,"Sans résidu sans porc",{"$error":"#REF!"},null,null,"Sans résidu sans porc",{"$error":"#REF!"},null,null,"Sans résidu sans porc",{"$error":"#REF!"}]
[null,"Ordinaire sans porc",{"$error":"#REF!"},null,null,"Ordinaire sans porc",{"$error":"#REF!"},null,null,"Ordinaire sans porc",{"$error":"#REF!"}]
[null,"Sans lactose",{"$error":"#REF!"},null,null,"Sans beurre & sans lait (matin et soir)",{"$error":"#REF!"},null,null,"Sans beurre & sans lait (matin et soir)",{"$error":"#REF!"}]
[null,"Sans gluten",{"$error":"#REF!"},null,null,"Sans gluten",{"$error":"#REF!"},null,null,"Sans gluten",{"$error":"#REF!"}]
[null,"Autres",{"$error":"#REF!"},null,null,"Autres",{"$error":"#REF!"},null,null,"Autres",{"$error":"#REF!"}]
["VENDREDI GOUTER","Ordinaire",{"$error":"#REF!"},null,"SAMEDI DEJEUNER ENFANTS","Ordinaire",{"$error":"#REF!"},null,"DIMANCHE DEJEUNER","Ordinaire",{"$error":"#REF!"}]
[null,"Mixé Lisse",{"$error":"#REF!"},null,null,"Mixé Lisse",{"$error":"#REF!"},null,null,"Mixé Lisse",{"$error":"#REF!"}]
[null,"Mixé sans viande",{"$error":"#REF!"},null,null,"Mixé sans viande",{"$error":"#REF!"},null,null,"Mixé sans viande",{"$error":"#REF!"}]
[null,"Sans viande",{"$error":"#REF!"},null,null,"Sans viande",{"$error":"#REF!"},null,null,"Sans viande",{"$error":"#REF!"}]
[null,"Fibre",{"$error":"#REF!"},null,null,"Fibre",{"$error":"#REF!"},null,null,"Fibre",{"$error":"#REF!"}]
[null,"Gastrostomie - Sonde",{"$error":"#REF!"},null,null,"Gastrostomie - Sonde",{"$error":"#REF!"},null,null,"Gastrostomie - Sonde",{"$error":"#REF!"}]
[null,"Mixé grossièrement",{"$error":"#REF!"},null,null,"Mixé grossièrement",{"$error":"#REF!"},null,null,"Mixé grossièrement",{"$error":"#REF!"}]
[null,"Sans fromages",{"$error":"#REF!"},null,null,"Sans fromages",{"$error":"#REF!"},null,null,"Sans fromages",{"$error":"#REF!"}]
[null,"Végétarien",{"$error":"#REF!"},null,null,"Végétarien",{"$error":"#REF!"},null,null,"Végétarien",{"$error":"#REF!"}]
[null,"Sans résidus",{"$error":"#REF!"},null,null,"Sans résidus",{"$error":"#REF!"},null,null,"Sans résidus",{"$error":"#REF!"}]
[null,"Mixé sans résidus",{"$error":"#REF!"},null,null,"Mixé sans résidus",{"$error":"#REF!"},null,null,"Mixé sans résidus",{"$error":"#REF!"}]
[null,"Mixé Lisse sans porc",{"$error":"#REF!"},null,null,"Mixé Lisse sans porc",{"$error":"#REF!"},null,null,"Mixé Lisse sans porc",{"$error":"#REF!"}]
[null,"Mixé sans viande sans porc",{"$error":"#REF!"},null,null,"Mixé sans viande sans porc",{"$error":"#REF!"},null,null,"Mixé sans viande sans porc",{"$error":"#REF!"}]
[null,"Fibre sans porc",{"$error":"#REF!"},null,null,"Fibre sans porc",{"$error":"#REF!"},null,null,"Fibre sans porc",{"$error":"#REF!"}]
[null,"Sans résidu sans porc",{"$error":"#REF!"},null,null,"Sans résidu sans porc",{"$error":"#REF!"},null,null,"Sans résidu sans porc",{"$error":"#REF!"}]
[null,"Ordinaire sans porc",{"$error":"#REF!"},null,null,"Ordinaire sans porc",{"$error":"#REF!"},null,null,"Ordinaire sans porc",{"$error":"#REF!"}]
[null,"Sans lactose",{"$error":"#REF!"},null,null,"Sans lactose",{"$error":"#REF!"},null,null,"Sans lactose",{"$error":"#REF!"}]
[null,"Autres",{"$error":"#REF!"},null,null,"Sans gluten",{"$error":"#REF!"},null,null,"Sans gluten",{"$error":"#REF!"}]
["VENDREDI DINER ENFANTS","Ordinaire",{"$error":"#REF!"},null,null,"Autres",{"$error":"#REF!"},null,null,"Autres",{"$error":"#REF!"}]
[null,"Mixé Lisse",{"$error":"#REF!"},null,"SAMEDI DEJEUNER ADULTES","Ordinaire",{"$error":"#REF!"},null,"DIMANCHE PIQUE-NIQUE","Ordinaire",{"$error":"#REF!"}]
[null,"Mixé sans viande",{"$error":"#REF!"},null,null,"Mixé Lisse",{"$error":"#REF!"},null,null,"Mixé Lisse",{"$error":"#REF!"}]
[null,"Sans viande",{"$error":"#REF!"},null,null,"Mixé sans viande",{"$error":"#REF!"},null,null,"Mixé sans viande",{"$error":"#REF!"}]
[null,"Fibre",{"$error":"#REF!"},null,null,"Sans viande",{"$error":"#REF!"},null,null,"Sans viande",{"$error":"#REF!"}]
[null,"Gastrostomie - Sonde",{"$error":"#REF!"},null,null,"Fibre",{"$error":"#REF!"},null,null,"Fibre",{"$error":"#REF!"}]
[null,"Mixé grossièrement",{"$error":"#REF!"},null,null,"Gastrostomie - Sonde",{"$error":"#REF!"},null,null,"Gastrostomie - Sonde",{"$error":"#REF!"}]
[null,"Sans fromages",{"$error":"#REF!"},null,null,"Mixé grossièrement",{"$error":"#REF!"},null,null,"Mixé grossièrement",{"$error":"#REF!"}]
[null,"Végétarien",{"$error":"#REF!"},null,null,"Sans fromages",{"$error":"#REF!"},null,null,"Sans fromages",{"$error":"#REF!"}]
[null,"Mixé sans résidus",{"$error":"#REF!"},null,null,"Végétarien",{"$error":"#REF!"},null,null,"Végétarien",{"$error":"#REF!"}]
[null,"Sans résidus",{"$error":"#REF!"},null,null,"Sans résidus",{"$error":"#REF!"},null,null,"Sans résidus",{"$error":"#REF!"}]
[null,"Mixé Lisse sans porc",{"$error":"#REF!"},null,null,"Mixé sans résidus",{"$error":"#REF!"},null,null,"Mixé sans résidus",{"$error":"#REF!"}]
[null,"Mixé sans viande sans porc",{"$error":"#REF!"},null,null,"Mixé Lisse sans porc",{"$error":"#REF!"},null,null,"Mixé Lisse sans porc",{"$error":"#REF!"}]
[null,"Fibre sans porc",{"$error":"#REF!"},null,null,"Mixé sans viande sans porc",{"$error":"#REF!"},null,null,"Mixé sans viande sans porc",{"$error":"#REF!"}]
[null,"Sans résidu sans porc",{"$error":"#REF!"},null,null,"Fibre sans porc",{"$error":"#REF!"},null,null,"Fibre sans porc",{"$error":"#REF!"}]
[null,"Ordinaire sans porc",{"$error":"#REF!"},null,null,"Sans résidu sans porc",{"$error":"#REF!"},null,null,"Sans résidu sans porc",{"$error":"#REF!"}]
[null,"Sans lactose",{"$error":"#REF!"},null,null,"Ordinaire sans porc",{"$error":"#REF!"},null,null,"Ordinaire sans porc",{"$error":"#REF!"}]
[null,"Autres",{"$error":"#REF!"},null,null,"Sans lactose",{"$error":"#REF!"},null,null,"Sans lactose",{"$error":"#REF!"}]
["VENDREDI DINER ADULTES","Ordinaire",{"$error":"#REF!"},null,null,"Autres",{"$error":"#REF!"},null,null,"Autres",{"$error":"#REF!"}]
[null,"Mixé Lisse",{"$error":"#REF!"},null,"SAMEDI GOUTER","Ordinaire",{"$error":"#REF!"}]
[null,"Mixé sans viande",{"$error":"#REF!"},null,null,"Mixé Lisse",{"$error":"#REF!"}]
[null,"Sans viande",{"$error":"#REF!"},null,null,"Mixé sans viande",{"$error":"#REF!"}]
[null,"Fibre",{"$error":"#REF!"},null,null,"Sans viande",{"$error":"#REF!"}]
[null,"Gastrostomie - Sonde",{"$error":"#REF!"},null,null,"Fibre",{"$error":"#REF!"}]
[null,"Mixé grossièrement",{"$error":"#REF!"},null,null,"Gastrostomie - Sonde",{"$error":"#REF!"}]
[null,"Sans fromages",{"$error":"#REF!"},null,null,"Mixé grossièrement",{"$error":"#REF!"}]
[null,"Végétarien",{"$error":"#REF!"},null,null,"Sans fromages",{"$error":"#REF!"}]
[null,"Mixé sans résidus",{"$error":"#REF!"},null,null,"Végétarien",{"$error":"#REF!"}]
[null,"Sans résidus",{"$error":"#REF!"},null,null,"Mixé sans résidus",{"$error":"#REF!"}]
[null,"Mixé Lisse sans porc",{"$error":"#REF!"},null,null,"Sans résidus",{"$error":"#REF!"}]
[null,"Mixé sans viande sans porc",{"$error":"#REF!"},null,null,"Mixé Lisse sans porc",{"$error":"#REF!"}]
[null,"Fibre sans porc",{"$error":"#REF!"},null,null,"Mixé sans viande sans porc",{"$error":"#REF!"}]
[null,"Sans résidu sans porc",{"$error":"#REF!"},null,null,"Fibre sans porc",{"$error":"#REF!"}]
[null,"Ordinaire sans porc",{"$error":"#REF!"},null,null,"Sans résidu sans porc",{"$error":"#REF!"}]
[null,"Sans lactose",{"$error":"#REF!"},null,null,"Ordinaire sans porc",{"$error":"#REF!"}]
[null,"Autres",{"$error":"#REF!"},null,null,"Sans lactose",{"$error":"#REF!"}]
[null,null,null,null,null,"Autres",{"$error":"#REF!"}]
[null,null,null,null,"SAMEDI DINER ENFANTS","Ordinaire",{"$error":"#REF!"}]
[null,null,null,null,null,"Mixé Lisse",{"$error":"#REF!"}]
[null,null,null,null,null,"Mixé sans viande",{"$error":"#REF!"}]
[null,null,null,null,null,"Sans viande",{"$error":"#REF!"}]
[null,null,null,null,null,"Fibre",{"$error":"#REF!"}]
[null,null,null,null,null,"Gastrostomie - Sonde",{"$error":"#REF!"}]
[null,null,null,null,null,"Mixé grossièrement",{"$error":"#REF!"}]
[null,null,null,null,null,"Sans fromages",{"$error":"#REF!"}]
[null,null,null,null,null,"Végétarien",{"$error":"#REF!"}]
[null,null,null,null,null,"Mixé sans résidus",{"$error":"#REF!"}]
[null,null,null,null,null,"Sans résidus",{"$error":"#REF!"}]
[null,null,null,null,null,"Mixé Lisse sans porc",{"$error":"#REF!"}]
[null,null,null,null,null,"Mixé sans viande sans porc",{"$error":"#REF!"}]
[null,null,null,null,null,"Fibre sans porc",{"$error":"#REF!"}]
[null,null,null,null,null,"Sans résidu sans porc",{"$error":"#REF!"}]
[null,null,null,null,null,"Ordinaire sans porc",{"$error":"#REF!"}]
[null,null,null,null,null,"Sans lactose",{"$error":"#REF!"}]
[null,null,null,null,null,"Autres",{"$error":"#REF!"}]
[null,null,null,null,"SAMEDI DINER ADULTES","Ordinaire",{"$error":"#REF!"}]
[null,null,null,null,null,"Mixé Lisse",{"$error":"#REF!"}]
[null,null,null,null,null,"Mixé sans viande",{"$error":"#REF!"}]
[null,null,null,null,null,"Sans viande",{"$error":"#REF!"}]
[null,null,null,null,null,"Fibre",{"$error":"#REF!"}]
[null,null,null,null,null,"Gastrostomie - Sonde",{"$error":"#REF!"}]
[null,null,null,null,null,"Mixé sans flatulence",{"$error":"#REF!"}]
[null,null,null,null,null,"Sans fromages",{"$error":"#REF!"}]
[null,null,null,null,null,"Végétarien",{"$error":"#REF!"}]
[null,null,null,null,null,"Mixé sans résidus",{"$error":"#REF!"}]
[null,null,null,null,null,"Sans résidus",{"$error":"#REF!"}]
[null,null,null,null,null,"Mixé Lisse sans porc",{"$error":"#REF!"}]
[null,null,null,null,null,"Mixé sans viande sans porc",{"$error":"#REF!"}]
[null,null,null,null,null,"Fibre sans porc",{"$error":"#REF!"}]
[null,null,null,null,null,"Sans résidu sans porc",{"$error":"#REF!"}]
[null,null,null,null,null,"Ordinaire sans porc",{"$error":"#REF!"}]
[null,null,null,null,null,"Sans lactose",{"$error":"#REF!"}]
[null,null,null,null,null,"Autres",{"$error":"#REF!"}]